Cogmind - Beta 15 @@@ ROGUE MODE // 2025.05.18 @ 19:40:10 Player: saltine Result: Destroyed by MAIN.C with Omega Cannon Performance ------------- Evolutions (9) 4500 Regions Visited (24) 4800 Robots Destroyed (375) 1875 Value Destroyed (25308) 25308 Prototype IDs (127) 2540 Alien Tech Used (10) 2000 Bonus (30314) 30314 TOTAL SCORE: 71337 Bonus ------- Triggered High Security 1000 High Alert Combat Kills 10399 Follower Combat Kills 1413 Forged Quantum Companion 2000 Network Hubs Disabled 200 Registered with UFD 300 Met Optimus in HQ 500 Met Zhirov 300 Built Enhanced Grunts 300 Found Hidden Lab 3000 Used Core Reset Matrix 3000 Destroyed MAIN.C Guards 500 Met MAIN.C 5000 Destroyed MAIN.C Shell 5000 Friendly Fire -2598 Cogmind --------- Core Integrity 0/1600 Matter 1050/1050 Energy 100/100 System Corruption 19% Temperature Cool (0) Movement Core (50) Location -1/Command Parts ------- > --- POWER (3) -------- (None) > --- PROPULSION (7) --- (None) > --- UTILITY (11) ----- Concept NT7 Matterbank Experimental Optical Array > --- WEAPON (4) ------- Superquantum Companion > --- INVENTORY (5) ---- Zero-point Reactor Concept Lightning Penetrator Concept Smart ZDS Peak State ------------ > --- POWER ------------ Particle Reactor Micro Antimatter Reactor Improved Quantum Reactor > --- PROPULSION ------- Experimental Biometal Leg Experimental Armored Exoskeleton Concept Biometal Exoskeleton > --- UTILITY ---------- Concept Antigrav Storage Unit Enhanced Optical Array Femtoactuators Experimental Force Booster Concept Core Shell Medium Regenerative Plating Concept RG22 Armor Concept RG22 Armor Concept Hardlight Director Concept Network Penetrator Concept Matter Streamer > --- WEAPON ----------- Cooled Directed Potential Cannon Superquantum Companion > --- INVENTORY -------- Particle Reactor Light Quantum Reactor Light Quantum Reactor Light Quantum Reactor Light Quantum Reactor Light Quantum Reactor Concept Biometal Exoskeleton Concept Biometal Exoskeleton Experimental Heat Sink Concept Thermoelectric Network Concept Chromion Battery Concept NT7 Matterbank Concept Weapon Articulator Precision Matter Filter Graphene Brace Concept Lightning Penetrator Concept Disintegration Ray Enhanced Nova Cannon Concept Plasma Driver Concept Plasma Driver Concept Arcsight Missile Launcher Concept Smart ZDS [Rating: 299] Favorites ----------- Power Meta Core Engine Ion Engine Power Core Meta Core Reactor Light Quantum Reactor Propulsion Multireflex Exoskeleton Treads Light Treads Leg Multireflex Exoskeleton Hover Unit Antigrav System Flight Unit VTOL Module Utility Enhanced Optical Array Device Seismic Detector Storage High-capacity Storage Unit Processor Enhanced Optical Array Hackware Makeshift Hacking Suite Protection Medium Regenerative Plating Artifact Phase Armor Weapon Companion Sword Energy Gun Medium Laser Energy Cannon Subdweller Beam Cannon Ballistic Gun Light Assault Rifle Ballistic Cannon Light Cannon Launcher Ragnarok Missile Launcher Special Weapon Mining Laser Impact Weapon Core Stripper Slashing Weapon Companion Sword Special Melee Weapon Improved Datajack Build | -11 -10 -10 -7 -7 -5 -5 -5 -5 -5 -4 -4 -4 -4 -4 -4 -3 -3 -3 -3 -2 -2 -2 -1 -1 ------- Run | Yrd Mat Sub Rec Scr Fac Ext Cet Arc Hub Fac Was Fac Upp Upp Zhi Pro Res Arm Lab Res Qua Frg Acc Com Slots Evolved 18 | . . . . . 10 . . . . 2 . . . . . . 2 . . 2 . . 2 . Power 2 | . . . . . 1 . . . . . . . . . . . 1 . . . . . . . Propulsion 5 | . . . . . 3 . . . . 1 . . . . . . 1 . . . . . . . Utility 9 | . . . . . 6 . . . . 1 . . . . . . . . . 2 . . . . Weapon 2 | . . . . . . . . . . . . . . . . . . . . . . . 2 . Parts Attached 253 | 1 8 10 1 6 19 21 10 2 9 24 3 3 1 5 4 11 2 6 1 13 27 43 8 15 Power 43 | . 1 . . 1 1 4 1 . 2 5 . 1 . . 1 . . 2 . 1 5 10 1 7 Engine 7 | . 1 . . 1 1 3 1 . . . . . . . . . . . . . . . . . Core 4 | . . . . . . 1 . . 1 1 . 1 . . . . . . . . . . . . Reactor 32 | . . . . . . . . . 1 4 . . . . 1 . . 2 . 1 5 10 1 7 Propulsion 67 | . 2 . . 2 9 8 3 . 3 8 2 . 1 1 1 7 . 4 . 2 4 8 . 2 Treads 12 | . 2 . . 1 4 1 . . . . 2 . 1 1 . . . . . . . . . . Leg 49 | . . . . . 5 7 3 . 3 8 . . . . . 3 . 4 . 2 4 8 . 2 Wheel . | . . . . . . . . . . . . . . . . . . . . . . . . . Hover 5 | . . . . . . . . . . . . . . . 1 4 . . . . . . . . Flight 1 | . . . . 1 . . . . . . . . . . . . . . . . . . . . Utility 106 | 1 2 2 1 1 9 6 5 1 3 10 1 2 . 4 2 3 2 . 1 7 14 21 3 5 Device 53 | 1 1 1 . . 6 1 1 1 1 8 . 2 . 3 . . . . . 3 9 10 3 2 Storage 11 | . 1 1 1 1 . . 1 . 1 1 . . . . 1 . . . . . . 2 . 1 Processor 11 | . . . . . 1 1 . . . 1 . . . . . 1 . . . 2 1 2 . 2 Hackware 8 | . . . . . . 1 1 . . . . . . 1 . . 2 . 1 1 . 1 . . Protection 22 | . . . . . 2 3 2 . 1 . 1 . . . 1 2 . . . 1 3 6 . . Artifact 1 | . . . . . . . . . . . . . . . . . . . . . 1 . . . Weapon 37 | . 3 8 . 2 . 3 1 1 1 1 . . . . . 1 . . . 3 4 4 4 1 Energy Gun 2 | . . . . . . . . . . . . . . . . . . . . . . 1 1 . Energy Cannon 15 | . . 4 . . . 1 1 . 1 . . . . . . 1 . . . 2 1 1 2 1 Ballistic Gun 3 | . 1 2 . . . . . . . . . . . . . . . . . . . . . . Ballistic Cannon 2 | . 1 1 . . . . . . . . . . . . . . . . . . . . . . Launcher 7 | . . 1 . . . 1 . . . 1 . . . . . . . . . 1 . 2 1 . Special Weapon 4 | . 1 . . 1 . . . 1 . . . . . . . . . . . . 1 . . . Impact Weapon 1 | . . . . . . . . . . . . . . . . . . . . . 1 . . . Slashing Weapon 2 | . . . . 1 . . . . . . . . . . . . . . . . 1 . . . Piercing Weapon . | . . . . . . . . . . . . . . . . . . . . . . . . . Special Melee Weapon 1 | . . . . . . 1 . . . . . . . . . . . . . . . . . . Unidentified Prototypes 42 | . . 1 . 1 1 . 4 . 2 1 . . . 1 5 1 . 2 3 . 8 8 1 3 Corrupted Parts 5 | . . . . . . . . . . . . . . . . 2 . . . . . 3 . . System Corruption 38 | . . . . . . . . . . . . . . . . 19 . . . . . 19 . . Parts Lost 113 | . . . . . 2 14 3 . . 21 1 . . . . 1 . 4 . 4 2 22 . 39 Power 28 | . . . . . 1 2 . . . 6 . . . . . . . 1 . 1 2 5 . 10 Propulsion 30 | . . . . . . 8 1 . . 9 1 . . . . . . 1 . 1 . 4 . 5 Utility 46 | . . . . . 1 3 1 . . 6 . . . . . 1 . 2 . 2 . 12 . 18 Weapon 9 | . . . . . . 1 1 . . . . . . . . . . . . . . 1 . 6 Highest Loss Streak 11 | . . . . . 1 8 3 . . 7 1 . . . . 1 . 2 . 2 1 4 . 11 To Critical Strikes 2 | . . . . . . . . . . . 1 . . . . . . . . . . . . 1 Average Backups 14 | 6 9 9 10 12 13 12 13 12 13 15 13 16 17 17 18 17 17 15 17 16 17 18 20 14 Power . | 1 . . . . . 1 1 1 1 . 1 1 1 1 1 1 2 . . . 1 1 4 3 Propulsion 2 | 4 3 2 2 2 1 1 1 2 3 2 . 1 1 1 1 . . . 2 2 1 2 2 1 Utility 6 | . 1 2 3 5 5 3 5 6 5 7 9 11 12 12 12 12 11 8 8 7 6 9 7 4 Weapon 3 | 1 3 2 2 1 2 3 2 2 1 2 2 2 2 2 2 1 2 3 5 4 4 4 6 6 Tool/Special . | . . . . . . . . . . . . . . . . . . . . . . . . . Unused Backups 38 | 6 2 2 . . 3 1 5 . 1 1 . . 1 . . . . 1 . . 6 8 1 . Power 7 | 1 1 . . . . . 2 . . . . . . . . . . . . . 2 . 1 . Propulsion 12 | 2 . 2 . . 2 1 2 . 1 1 . . . . . . . . . . . 1 . . Utility 11 | 1 . . . . 1 . 1 . . . . . 1 . . . . . . . 1 6 . . Weapon 6 | 2 1 . . . . . . . . . . . . . . . . 1 . . 2 . . . Tool/Special 2 | . . . . . . . . . . . . . . . . . . . . . 1 1 . . Average Slot Usage (%) 80 | . 100 100 100 85 75 87 93 94 89 82 56 53 59 60 61 71 66 64 66 75 84 82 74 64 Engine 4 | . 14 14 14 9 4 8 5 5 5 4 . . . . . . . . . . . . . . Core 1 | . . . . . . . 5 5 . . 4 6 9 9 6 4 4 4 4 3 . . . . Reactor 4 | . . . . . . . . . 4 4 . . . . 2 . . 3 8 5 11 12 11 9 Treads 10 | . 8 28 28 26 11 . 1 . . . 5 9 12 13 13 5 4 2 . . . . . . Leg 12 | . 19 . . . 16 27 27 29 29 28 8 4 4 3 3 15 16 14 16 14 21 18 12 9 Device 13 | . 14 13 14 13 18 19 4 7 10 14 11 9 9 9 7 15 13 11 8 12 13 13 17 13 Storage 7 | . 14 14 14 13 5 5 6 11 5 4 4 4 4 4 4 4 4 4 4 3 3 4 4 5 Processor 5 | . . . . . 3 5 5 5 5 6 9 9 9 9 9 9 8 8 8 10 12 8 4 5 Hackware 2 | . . . . . . 4 5 5 5 4 . . . 1 4 4 6 8 8 10 4 1 4 3 Protection 4 | . . . . . 4 5 20 14 12 7 3 4 4 4 4 4 4 3 4 3 5 14 13 10 Energy Cannon 4 | . . 12 28 11 . . . . . . . . . . . 1 . . . 2 2 1 3 2 Ballistic Cannon 1 | . 4 7 . . . . . . . . . . . . . . . . . . . . . . Slashing Weapon 4 | . . . . 8 5 5 5 5 5 4 4 4 4 4 4 4 4 4 4 3 3 4 3 3 Peak Build Rating 299 | 7 8 13 13 25 69 80 91 93 96 118 118 113 117 127 129 137 123 134 153 189 201 274 296 299 Average Rating 104 | 6 7 10 11 15 53 65 82 90 91 104 106 109 111 121 125 121 116 118 143 172 188 220 273 233 On Entrance 103 | 6 7 8 12 12 25 61 80 91 91 92 77 111 108 111 126 129 114 121 134 153 178 196 245 296 Naked Turns 1 | . . . . 1 . . . . . . . . . . . . . . . . . . . . Heaviest Build 163 | 12 20 32 42 42 46 63 73 75 83 97 111 113 120 120 115 125 68 98 98 137 163 163 160 163 Greatest Support 190 | 20 40 40 40 42 102 96 85 85 111 162 140 140 163 190 167 167 90 133 133 140 180 186 186 186 Greatest Overweight (x) 1 | . . . 1 1 . . 1 . . . 1 . . . . 1 . 1 . . . 1 . 1 Average Overweight (x) . | . . . . . . . . . . . . . . . . . . . . . . . . . Largest Inventory Capacity 25 | 8 10 10 15 15 15 15 15 15 15 20 20 20 20 20 20 20 20 20 20 20 20 25 25 25 Average Capacity 17 | 8 9 10 12 14 15 15 15 15 15 18 16 19 20 20 20 20 20 20 20 20 20 22 25 24 Most Carried 25 | 8 10 10 14 15 15 15 15 15 15 20 15 20 20 20 20 20 19 20 20 20 20 25 25 24 Average Carried 16 | 6 9 9 11 13 14 13 14 14 14 15 14 18 19 19 19 18 18 17 19 19 19 21 23 16 Final Capacity 25 | 8 10 10 15 15 15 15 15 15 15 20 15 20 20 20 20 20 20 20 20 20 20 25 25 25 Final Carried 25 | 8 10 10 14 15 15 15 15 15 15 14 15 20 20 20 20 18 19 18 20 20 20 25 24 20 Class Distribution -------------------- 36% | Mutant 19% | Hacker-Mutant 19% | Scavenger-Mutant 11% | Scavenger-Assassin 7% | Alien-Assassin Dominant Class ---------------- Mutant | -10/Materials Mutant | -10/Subcaves Mutant | -7/Recycling Mutant | -7/Scraptown Mutant | -5/Factory Scavenger-Mutant | -5/Extension Scavenger-Mutant | -5/Cetus Scavenger-Mutant | -5/Archives Scavenger-Mutant | -5/Hub_04(d) Scavenger-Mutant | -4/Factory Scavenger-Mutant | -4/Waste Scavenger-Assassin | -4/Factory Scavenger-Assassin | -4/Upper Caves Scavenger-Assassin | -4/Upper Caves Scavenger-Assassin | -4/Zhirov Scavenger-Assassin | -3/Proximity Caves Scavenger-Mutant | -3/Research Hacker-Mutant | -3/Armory Hacker-Mutant | -3/Lab Hacker-Mutant | -2/Research Alien-Assassin | -2/Quarantine Scavenger-Mutant | -2/Protoforge Hacker-Mutant | -1/Access Hacker-Mutant | -1/Command Resources | -11 -10 -10 -7 -7 -5 -5 -5 -5 -5 -4 -4 -4 -4 -4 -4 -3 -3 -3 -3 -2 -2 -2 -1 -1 ----------- Run | Yrd Mat Sub Rec Scr Fac Ext Cet Arc Hub Fac Was Fac Upp Upp Zhi Pro Res Arm Lab Res Qua Frg Acc Com Matter Collected 13098 | 237 229 384 40 80 273 298 176 79 210 393 471 74 184 201 . 1106 55 179 147 592 923 3745 1058 1964 Remotely 885 | . . . . . . . . . . . . . . . . . . . . . . . 801 84 Salvage Created 18073 | 92 417 115 487 . 738 962 243 79 383 943 423 74 . . . 1028 15 423 . 1228 1557 4535 1188 3143 Parts 783 | 11 35 10 17 . 37 41 24 4 13 51 8 5 . . . 33 2 19 . 44 80 210 44 95 Haulers Intercepted 3 | . 2 . . . . . . . 1 . . . . . . . . . . . . . . . Recyclers Shooed 1 | . . . 1 . . . . . . . . . . . . . . . . . . . . . Parts Field Recycled . | . . . . . . . . . . . . . . . . . . . . . . . . . Retrieved Matter . | . . . . . . . . . . . . . . . . . . . . . . . . . Parts Self-Destructed 50 | . . 19 . . . . . . . . . . 7 5 . 19 . . . . . . . . Prevented 24 | . . . . . . . . . . . . . . 12 . 12 . . . . . . . . Kills | -11 -10 -10 -7 -7 -5 -5 -5 -5 -5 -4 -4 -4 -4 -4 -4 -3 -3 -3 -3 -2 -2 -2 -1 -1 ------- Run | Yrd Mat Sub Rec Scr Fac Ext Cet Arc Hub Fac Was Fac Upp Upp Zhi Pro Res Arm Lab Res Qua Frg Acc Com Combat Hostiles Destroyed 325 | . 12 2 3 . 10 17 2 . 2 14 1 1 . . . 28 . 5 . 14 15 89 40 70 Melee 117 | . . . . . 10 13 . . 2 14 . 1 . . . 3 . 5 . 5 9 32 10 13 Guns 12 | . 10 1 . . . . . . . . . . . . . . . . . . . . . 1 Cannons 24 | . 2 1 3 . . . . . . . 1 . . . . . . . . 3 . 6 2 6 AOE 127 | . . . . . . 4 . . . . . . . . . 23 . . . 1 . 33 25 41 Classes Destroyed 34 | 1 4 2 2 . 2 1 . . . 1 2 . . . . 2 . 1 . 3 1 9 1 2 Worker 9 | . . . . . . . . . . . . . . . . . . . . 1 1 . 3 4 Builder 8 | . . . . . 2 1 . . . . . . . . . . 1 . . 2 . . 2 . Tunneler 8 | 6 . . . . . . . . . 2 . . . . . . . . . . . . . . Hauler 3 | . 2 . . . . . . . 1 . . . . . . . . . . . . . . . Recycler 10 | . . . 4 . 1 . . . 1 . . . . . . . . . . 1 2 . 1 . Carrier 1 | . . . . . . . . . . . . . . . . . . . . . . 1 . . Minesweeper 1 | . . . . . . . . . . . . . . . . 1 . . . . . . . . Mechanic 2 | . . . . . . . . . . . . . . . . . . . . . . . 2 . Operator 2 | . 1 . . . . 1 . . . . . . . . . . . . . . . . . . Drone 5 | . . . . . . . . . . . . . . . . . . . . . . 5 . . Watcher 4 | . . . . . . 1 . . . . . . . . . . . . . 1 1 . . 1 Swarmer 55 | . 6 . . . . 4 . . . . . . . . . 9 . . . 5 . 5 11 15 Saboteur 6 | . . . . . . . . . . . . . . . . . . . . . . 3 . 3 Grunt 87 | . 6 . . . 4 8 . . . 5 . . . . . 16 . . . 3 . 14 17 14 Brawler 12 | . . . . . . . . . . . . . . . . . . . . 1 . 4 1 6 Duelist 9 | . . . . . . . . . . . . . . . . 1 . . . . . 2 3 3 Protector 5 | . . . . . . . . . . . . . . . . . . . . . . 1 1 3 Researcher 1 | . . . . . . . . . . . . . . . . . . . . . . 1 . . Sentry 35 | . . . 3 . 2 5 . . 2 1 . 1 . . . 2 . 1 . . . 13 3 2 Specialist 4 | . . . . . . . . . . . . . . . . . . 2 . . . . . 2 Hunter 14 | . . . . . . . . . . 2 . . . . . . . 2 . 2 2 . 2 4 Programmer 40 | . . . . . 4 . . . . 6 . . . . . . . . . 2 7 15 2 4 Heavy 1 | . . . . . . . . . . . . . . . . . . . . 1 . . . . Compactor 1 | . . . . . . . . . . . 1 . . . . . . . . . . . . . Cetus Guard 2 | . . . . . . . 2 . . . . . . . . . . . . . . . . . Quarantine Guard 5 | . . . . . . . . . . . . . . . . . . . . . 5 . . . M Guard 2 | . . . . . . . . . . . . . . . . . . . . . . . . 2 Hotshot 9 | . . . . . . . . . . . . . . . . . . . . . . 9 . . Decapitator 10 | . . . . . . . . . . . . . . . . . . . . . . 10 . . Immortal 4 | . . . . . . . . . . . . . . . . . . . . . . 4 . . Combat Programmer 2 | . . . . . . . . . . . . . . . . . . . . . . . . 2 Striker 3 | . . . . . . . . . . . . . . . . . . . . . . . . 3 Executioner 4 | . . . . . . . . . . . . . . . . . . . . . . . . 4 Alpha 7 4 | . . . . . . . . . . . . . . . . . . . . . . 2 . 2 Fortress 1 | . . . . . . . . . . . . . . . . . . . . . 1 . . . V-Series 2 | . . . . . . . . . . . . . . . . . . . . . . 2 . . Artisan 2 | . . 2 . . . . . . . . . . . . . . . . . . . . . . Subdweller 2 | . . 2 . . . . . . . . . . . . . . . . . . . . . . Scrapoid 2 | . . . . . . . . . . . 2 . . . . . . . . . . . . . Tinkerer 1 | . . . . . . . . . . . . . . . . . . . . . . 1 . . Wizard 1 | . . . . . . . . . . . . . . . . 1 . . . . . . . . Best Kill Streak 26 | 3 4 1 3 . 4 4 2 . 1 3 1 1 . . . 16 1 2 . 11 3 9 26 21 Combat Bots Only 20 | . 3 1 1 . 4 4 2 . 1 3 1 1 . . . 16 . 2 . 9 3 9 19 20 Max Kills in Single Turn 6 | 1 1 1 1 . 1 2 1 . 1 2 2 1 . . . 4 1 1 . 2 2 6 6 6 Gunslinging . | . . . . . . . . . . . . . . . . . . . . . . . . . Exploded 6 | . . . . . . 2 . . . . . . . . . 4 . . . 1 . 6 5 6 Melee 2 | . . . . . 1 1 . . 1 2 . 1 . . . 1 . 1 . 1 2 1 2 1 Uniques/NPCs Destroyed 2 | . . . . . . . 1 . . . . . . . . . . . . . . . . 1 A7 (-5/Cetus) MAIN.C Shell (-1/Command) Combat | -11 -10 -10 -7 -7 -5 -5 -5 -5 -5 -4 -4 -4 -4 -4 -4 -3 -3 -3 -3 -2 -2 -2 -1 -1 -------- Run | Yrd Mat Sub Rec Scr Fac Ext Cet Arc Hub Fac Was Fac Upp Upp Zhi Pro Res Arm Lab Res Qua Frg Acc Com Hostile Shots Fired 2537 | . 44 8 57 . 63 147 31 . 8 324 4 10 . 3 . 59 . 226 . 172 177 544 95 565 Missed 800 | . 11 1 25 . 15 27 11 . 5 95 . 3 . 1 . 15 . 94 . 58 81 152 27 179 Deflected 47 | . . . . . . . . . . 3 . . . . . . . . . 2 9 24 2 7 Hits 1737 | . 33 7 32 . 48 120 20 . 3 229 4 7 . 2 . 44 . 132 . 114 96 392 68 386 Melee 94 | . . . . . . . . . . . 4 . . . . . . . . 1 . 64 7 18 Projectile 1643 | . 33 7 32 . 48 120 20 . 3 229 . 7 . 2 . 44 . 132 . 113 96 328 61 368 AOE 12 | . . 1 . . . . . . 1 1 . . . . . . . . . . . 4 . 5 Critical Strikes 119 | . . 1 . . 3 4 3 . . 17 4 . . . . . . 1 . 7 13 51 5 10 Actively Blocked 47 | . . . . . . . . . . . . . . . . . . . . 5 2 40 . . Part Disruptions 20 | . . . . . . . . . . . . . . . . . . . . 2 . 9 . 9 Damage Taken 37149 | . 335 293 232 . 973 2408 551 . 116 4321 158 163 . 28 . 1063 . 1305 . 2923 2069 8651 1034 10526 Core 4383 | . 28 56 83 . 87 440 35 . . 615 38 . . . . 34 . 116 . 356 271 532 39 1653 Absorbed by Shields 4625 | . . . . . . . 26 . . . . . . . . . . . . 377 480 2067 714 961 Reduced by Siege Mode 5 | . . . . . . . . . . . . . . . . 5 . . . . . . . . Redirected to Core 137 | . . . . . . . . . . . . . . . . . . . . . 137 . . . Redirected to Shielding 356 | . . . . . . 45 10 . . . . . . . . . . . . . . 164 17 120 Ignored by Resistances 1539 | . . . . . . . . . . 13 . . . . . . . . . . . 1526 . . Regen/Repaired (Parts) 4112 | . . . . . . . 15 . 41 331 . . . . . . . . . 301 546 1234 225 1419 Core Remaining (%) 53 | 100 . . . 33 . . . . 43 . . . . . . 40 . . 100 . . 6 . . Volleys Fired 445 | 27 43 32 13 . . 17 14 11 1 7 16 . 7 1 . 18 . 1 . 26 32 81 28 70 Largest 3 | 2 2 2 2 . . 1 1 1 1 1 1 . 1 1 . 1 . 1 . 1 2 1 2 3 Hottest 400 | 70 100 100 160 . . 65 81 30 90 90 90 . 90 90 . 105 . 105 . 105 199 140 180 400 Shots Fired 551 | 54 84 39 26 . . 17 14 11 1 7 14 . 7 1 . 16 . 1 . 26 37 80 30 86 Gun 174 | 54 80 10 . . . . . . . . . . . . . . . . . . . 3 4 23 Cannon 267 | . 2 12 26 . . 14 12 . 1 7 3 . 7 1 . 3 . 1 . 22 37 51 18 50 Launcher 79 | . . 1 . . . 3 . . . . 11 . . . . 13 . . . 4 . 26 8 13 Special 31 | . 2 16 . . . . 2 11 . . . . . . . . . . . . . . . . Kinetic 86 | 27 43 16 . . . . . . . . . . . . . . . . . . . . . . Thermal 306 | 27 41 23 26 . . 14 . 11 1 7 3 . 7 1 . 3 . 1 . 21 13 39 18 50 Explosive 61 | . . . . . . 3 . . . . 11 . . . . 13 . . . . . 13 8 13 Electromagnetic 88 | . . . . . . . 12 . . . . . . . . . . . . 5 24 25 4 18 Entropic 8 | . . . . . . . . . . . . . . . . . . . . . . 3 . 5 Robot Hit Streak 40 | 5 12 18 9 . . . 5 4 . . 8 . . . . 7 . . . 8 14 9 10 40 Robot Miss Streak 5 | 4 3 1 2 . . . 2 1 . . 1 . . . . 1 . . . 2 1 5 2 2 Penetration Max 1 | . . . . . . . . . . . . . . . . . . . . . . 1 . 1 Secondary Targets 1 | . 1 . . . . . . . . . . . . . . . . . . . . . . . Max Gunslinging Chain 1 | . 1 . . . . . . . . . . . . . . . . . . . . . . . Autonomous 29 | . . . . . . . . . . . . . . . . . . . . 3 5 17 2 2 Shots Hit Robots 823 | 29 52 18 18 . 32 90 20 14 5 74 11 7 . . . 11 1 23 . 44 54 163 33 124 Core Hits 517 | 10 23 6 9 . 17 27 8 5 4 27 4 2 . . . 40 1 8 . 31 22 112 42 119 Critical Kills 14 | 1 . . 1 . . . . . . . . . . . . 2 . . . . . 3 1 6 Critical Parts Destroyed . | . . . . . . . . . . . . . . . . . . . . . . . . . Critical Strikes 44 | 2 7 . 1 . . 2 . . . 6 . . . . . 2 . 2 . 2 4 3 1 12 Burn 8 | 1 7 . . . . . . . . . . . . . . . . . . . . . . . Meltdown 13 | . . . 1 . . . . . . . . . . . . 2 . . . . . 3 1 6 Destroy 1 | 1 . . . . . . . . . . . . . . . . . . . . . . . . Corrupt 2 | . . . . . . . . . . . . . . . . . . . . . 2 . . . Melee Attacks 849 | . . . . . 52 109 12 13 9 111 . 9 4 4 . 8 1 39 28 38 79 188 40 105 Kinetic 4 | . . . . . . . . . . . . . . . . . . . . . 4 . . . Impact . | . . . . . . . . . . . . . . . . . . . . . . . . . Slashing 822 | . . . . . 52 86 12 13 9 111 . 9 4 4 . 8 1 39 28 38 75 188 40 105 Piercing . | . . . . . . . . . . . . . . . . . . . . . . . . . Sneak Attacks 78 | . . . . . 5 28 12 . 2 3 . 1 . . . 1 1 4 . 2 6 11 2 . Combat Hostiles 17 | . . . . . 1 2 . . . . . . . . . . . 4 . . 3 7 . . Follow-up Attacks 13 | . . . . . . 3 . . . 4 . . . . . . . . . . . 5 . 1 Martial Strikes 18 | . . . . . . . . . . . . . . . . . . 2 . 1 5 10 . . Damage Inflicted 82872 | 284 580 272 499 . 1557 3451 883 558 259 3078 2331 326 . . . 5219 60 1061 . 3032 3829 21467 10664 23462 Guns 1939 | 284 537 97 . . . . . . . . . . . . . . . . . . . 140 104 777 Cannons 10246 | . 35 175 499 . . 26 266 . . . 114 . . . . 73 . . . 931 1045 3241 921 2920 Explosions 38799 | . . . . . . 498 . . . . 2217 . . . . 4918 . . . 874 . 8148 7529 14615 Melee 31761 | . . . . . 1557 2927 617 510 259 3076 . 326 . . . 228 60 1061 . 1227 2784 9938 2110 5081 Ramming 79 | . 8 . . . . . . . . 2 . . . . . . . . . . . . . 69 Kinetic 623 | 124 246 149 . . . . . . . . . . . . . . . . . . 104 . . . Thermal 12509 | 160 326 123 499 . . 26 . 48 . . 114 . . . . 73 . . . 639 . 1649 2324 6528 Explosive 31371 | . . . . . . 498 . . . . 2217 . . . . 4918 . . . . . 6962 5949 10827 Electromagnetic 3835 | . . . . . . . 266 . . . . . . . . . . . . 916 621 1416 104 512 Impact . | . . . . . . . . . . . . . . . . . . . . . . . . . Slashing 31657 | . . . . . 1557 2927 617 510 259 3076 . 326 . . . 228 60 1061 . 1227 2680 9938 2110 5081 Piercing . | . . . . . . . . . . . . . . . . . . . . . . . . . Entropic 405 | . . . . . . . . . . . . . . . . . . . . . . 140 . 265 Phasic 2393 | . . . . . . . . . . . . . . . . . . . . 250 424 1362 177 180 Highest Corruption 77 | . . . . . 7 7 7 7 1 13 23 23 23 23 23 42 . 1 1 4 10 77 3 19 Average Corruption 12 | . . . . . 4 7 7 2 1 7 22 23 23 23 23 38 . 1 1 2 4 28 2 5 Corruption Purged 6 | . . . . . . . . 6 . . . . . . . . . . . . . . . . Corruption Blocked . | . . . . . . . . . . . . . . . . . . . . . . . . . Effects 562 | . . . . . 10 48 9 3 7 21 18 13 33 42 13 66 . 4 20 2 75 149 6 23 Message Errors 137 | . . . . . 3 10 . 1 3 5 2 2 10 11 1 21 . . 5 1 18 33 3 8 Matter Fused 137 | . . . . . 2 10 4 . 2 6 6 4 10 9 4 16 . 3 5 1 19 29 1 6 Heat Flow Errors 65 | . . . . . 1 6 . 1 . . 1 4 3 8 3 6 . . 1 . 11 17 . 3 Energy Discharges 71 | . . . . . . 6 1 . . 3 1 1 3 3 1 10 . 1 5 . 13 22 . 1 Parts Rejected 11 | . . . . . . 2 . . . 1 3 . . 1 . . . . . . . 3 . 1 Parts Fused 4 | . . . . . . . . . . . . . . 2 . . . . . . 1 1 . . Data Loss (minor) 68 | . . . . . 2 9 1 1 . 3 . 2 4 7 2 6 . . 2 . 5 21 1 2 Data Loss (major) 24 | . . . . . 2 5 . . 2 2 . . 1 1 1 2 . . . . 2 6 . . Misfires 9 | . . . . . . . 1 . . . . . . . . . . . . . 4 3 . 1 Alerts 14 | . . . . . . . 1 . . 1 . . 2 . 1 2 . . 2 . 1 3 1 . Misdirections 11 | . . . . . . . . . . . 3 . . . . 1 . . . . . 7 . . Weapon Failures 11 | . . . . . . . 1 . . . 2 . . . . 2 . . . . 1 4 . 1 Overload Shots 1 | . . . . . . . . . . . . . . . . . . . . . . . . 1 Overflow Damage 5950 | . . . 6 . 76 243 . 188 13 190 . 46 . . . 324 . 4 . 114 273 2095 1019 1359 Projectiles 650 | . . . 6 . . . . . . . . . . . . . . . . 4 52 226 121 241 Explosions 2716 | . . . . . . 65 . . . . . . . . . 270 . . . 13 . 869 733 766 Melee 2584 | . . . . . 76 178 . 188 13 190 . 46 . . . 54 . 4 . 97 221 1000 165 352 Knockbacks 2 | . . 1 . . . . . . . . . . . . . . . . . . . . . 1 Impact 1 | . . . . . . . . . . . . . . . . . . . . . . . . 1 Kinetic 1 | . . 1 . . . . . . . . . . . . . . . . . . . . . . Secondary . | . . . . . . . . . . . . . . . . . . . . . . . . . Self-Inflicted Damage 1115 | . . . . . . . . . . . . . . . . 97 . . . 124 . 482 . 412 Shots 46 | . . . . . . . . . . . . . . . . 1 . . . 10 . 31 . 4 Rammed 2 | . 2 . . . . . . . . . . . . . . . . . . . . . . . Targets Rammed 6 | . 3 . . . . . . . . 1 . . . . . . . . . . . 1 . 1 Kicked 4 | . 1 . . . . . . . . 1 . . . . . . . . . . . 1 . 1 Crushed . | . . . . . . . . . . . . . . . . . . . . . . . . . Highest Temperature 370 | 110 154 . 288 . 86 246 146 105 62 5 88 163 226 280 211 221 . . 168 84 370 222 156 252 Average Temperature 86 | 41 51 . 112 . 42 125 78 63 29 5 54 75 94 104 94 83 . . 103 40 105 64 44 108 Received Heat Transfer 4019 | . 102 36 42 . 162 900 108 . 21 640 . 27 . . . 153 . . . 144 28 918 62 676 Effects 5 | . . . . . . . . . . . . . . 3 1 . . . . . 1 . . . Energy Bleed 2 | . . . . . . . . . . . . . . . 1 . . . . . 1 . . . Interference 3 | . . . . . . . . . . . . . . 3 . . . . . . . . . . Siege Activations 1 | . . . . . . . . . . . . . . . . 1 . . . . . . . . Total Turns 12 | . . . . . . . . . . . . . . . . 12 . . . . . . . . Longest Duration 12 | . . . . . . . . . . . . . . . . 12 . . . . . . . . Martial Activations 23 | . . . . . . . . . . . . . . . . . . 1 . 3 10 9 . . Total Turns 570 | . . . . . . . . . . . . . . . . . . 41 . 67 192 270 . . Longest Duration 58 | . . . . . . . . . . . . . . . . . . 41 . 40 53 58 . . Shielding Activations 2 | . . . . . . . . . . 1 . . . . . . . . . . . 1 . . Total Turns 19 | . . . . . . . . . . 9 . . . . . . . . . . . 10 . . Longest Duration 10 | . . . . . . . . . . 9 . . . . . . . . . . . 10 . . Robots Disrupted 4 | . . . . . . 1 . . . 1 . . . . . . . . . . . 2 . . Combat Hostiles 3 | . . . . . . . . . . 1 . . . . . . . . . . . 2 . . Robots Corrupted 27 | . . . . . . . 2 . . . . . . . . . . . . 6 5 9 1 4 Combat Hostiles 25 | . . . . . . . 2 . . . . . . . . . . . . 5 5 9 1 3 Parts Fried 46 | . . . . . . . 2 . . . . . . . . . . . . 9 14 17 . 4 Impact Corruptions 1 | . . . . . . . . . . . . . . . . . . . . . . . . 1 Robots Melted 14 | . 1 . 1 . . . . . . . . . . . . 2 . . . . . 3 1 6 Combat Hostiles 11 | . . . . . . . . . . . . . . . . 2 . . . . . 2 1 6 Parts Melted 17 | . 3 . . . . . . . . . 6 . . . . . . . . . . 3 . 5 Heat Transferred 9981 | 555 1480 222 666 . . 37 . 225 . . . . . . . 74 . . . 666 . 962 1355 3739 Parts Sabotaged 1 | . . . . . . . . . . . . . . . . . . . . . . 1 . . Parts Stolen . | . . . . . . . . . . . . . . . . . . . . . . . . . Parts Stripped 93 | . . . . . . . . . . . . . . . . . . . . 7 18 56 12 . Power Chain Reactions . | . . . . . . . . . . . . . . . . . . . . . . . . . Alert | -11 -10 -10 -7 -7 -5 -5 -5 -5 -5 -4 -4 -4 -4 -4 -4 -3 -3 -3 -3 -2 -2 -2 -1 -1 ------- Run | Yrd Mat Sub Rec Scr Fac Ext Cet Arc Hub Fac Was Fac Upp Upp Zhi Pro Res Arm Lab Res Qua Frg Acc Com Maximum Alert Level 5 | . . . . . . . . . 2 . . . . . . . . . . 1 . 5 5 5 Low Security (%) 70 | 100 100 . 100 . 100 100 100 100 28 100 100 100 . . . . 100 100 . 89 100 14 . . Level 1 6 | . . . . . . . . . 64 . . . . . . . . . . 10 . 23 . . Level 2 4 | . . . . . . . . . 7 . . . . . . . . . . . . 20 . . Level 3 5 | . . . . . . . . . . . . . . . . . . . . . . 22 18 . Level 4 6 | . . . . . . . . . . . . . . . . . . . . . . 12 48 23 Level 5 3 | . . . . . . . . . . . . . . . . . . . . . . 6 . 36 High Security 3 | . . . . . . . . . . . . . . . . . . . . . . . 33 40 Max Security . | . . . . . . . . . . . . . . . . . . . . . . . . . Peak Influence 2872 | 10 121 . 30 . 86 178 133 15 409 193 89 30 . . . . 189 73 . 292 153 1781 2241 2872 Initial 1433 | . . . . . . 35 95 4 3 189 11 . . . . . 189 73 . . 153 60 1068 1433 Average 357 | 1 48 . 6 . 14 75 75 1 231 63 26 2 . . . . 162 20 . 38 64 678 1468 2021 Influence Increases 12162 | 30 376 26 118 . 327 906 135 35 734 507 128 34 . 196 . 894 42 220 . 478 680 2677 1435 2184 Destroy 0b10 Robot/C 6980 | . 240 20 60 . 200 460 80 . 220 280 . 20 . 140 . 680 . 120 . 280 300 1760 780 1340 Destroy 0b10 Robot/NC 325 | 30 15 . 20 . 15 25 5 10 25 15 . . . . . 5 10 . . 25 20 20 45 40 Destroy Leader 1040 | . 64 . . . 50 56 . . 84 60 . 10 . . . 40 . 30 . 62 92 220 120 152 Allied During Kill 553 | . . 6 2 . . 105 46 10 278 . . . . 41 . 49 4 5 . . . . . 7 Successful Hack 316 | . 25 . . . 20 27 . . 30 27 . . . . . . 12 21 . 39 28 30 12 45 Select Force Hacks 110 | . 30 . 30 . . . . . 50 . . . . . . . . . . . . . . . Disable Machine 600 | . . . . . 30 . . 15 15 15 . . . . . . . 30 . . 135 285 45 30 Destroy Structure 1578 | . 2 . 6 . 12 38 4 . 32 50 128 4 . . . . 16 14 . 27 90 242 433 480 Partial Spotted 45 | . . . . . . . . . . . . . . . . . . . . . . 15 . 30 Lose Combat Pursuer 615 | . . . . . . 195 . . . 60 . . . 15 . 120 . . . 45 15 105 . 60 Influence Decreases 9483 | 30 344 58 118 . 253 810 295 35 356 863 160 32 2 196 . 614 181 361 . 205 846 1003 975 1746 Entered New Map 2212 | . . 16 . . . 39 75 6 7 199 21 . 2 . . . 91 68 . . 120 47 713 808 Time Decay 5081 | 30 344 42 106 . 253 471 150 29 189 501 89 32 . 156 . 448 90 183 . 177 535 716 262 278 Lost Part 1034 | . . . . . . 140 30 . . 163 10 . . . . 10 . 30 . 28 13 220 . 390 Lost Ally 828 | . . . 12 . . 160 40 . 160 . 40 . . 40 . 156 . 80 . . . 20 . 120 Purge Threat 328 | . . . . . . . . . . . . . . . . . . . . . 178 . . 150 Squads Dispatched 73 | . 3 . . . 5 2 . . 6 6 . . . . . . . 2 . 3 5 13 13 15 Investigation 10 | . 2 . . . 3 1 . . 2 1 . . . . . . . . . . 1 . . . Extermination 19 | . . . . . 2 . . . . 3 . . . . . . . 1 . 2 3 6 1 1 Reinforcement 14 | . 1 . . . . 1 . . 4 2 . . . . . . . 1 . 1 1 . . 3 Assault 30 | . . . . . . . . . . . . . . . . . . . . . . 7 12 11 Garrison . | . . . . . . . . . . . . . . . . . . . . . . . . . Intercept . | . . . . . . . . . . . . . . . . . . . . . . . . . Searches Triggered . | . . . . . . . . . . . . . . . . . . . . . . . . . Construction Impeded . | . . . . . . . . . . . . . . . . . . . . . . . . . Haulers Reinforced . | . . . . . . . . . . . . . . . . . . . . . . . . . Active Scanning Responses . | . . . . . . . . . . . . . . . . . . . . . . . . . Cargo Convoy Interrupts 1 | . . . . . . . . . . 1 . . . . . . . . . . . . . . Stealth | -11 -10 -10 -7 -7 -5 -5 -5 -5 -5 -4 -4 -4 -4 -4 -4 -3 -3 -3 -3 -2 -2 -2 -1 -1 --------- Run | Yrd Mat Sub Rec Scr Fac Ext Cet Arc Hub Fac Was Fac Upp Upp Zhi Pro Res Arm Lab Res Qua Frg Acc Com Distress Signals 18 | . 1 . . . . 5 1 . 1 3 . . . . . . . . . . . 2 1 4 Communications Jammed 52 | . . . . . . 5 . . . 4 . . . . . . . . . 43 . . . . Distress Signals 32 | . . . . . . 5 . . . 4 . . . . . . . . . 23 . . . . Times Spotted 469 | . 20 9 3 . 11 35 6 . 9 26 6 1 . 8 . 42 . 7 . 28 25 114 33 86 Peak Tracking Total 20 | . 4 1 2 . 3 6 5 . 3 4 2 1 . 6 . 14 . 2 . 7 3 13 10 20 Tactical Retreats 26 | . . . . . . 9 . . . 2 . . . 1 . 5 . . . 2 1 4 . 2 Traps | -11 -10 -10 -7 -7 -5 -5 -5 -5 -5 -4 -4 -4 -4 -4 -4 -3 -3 -3 -3 -2 -2 -2 -1 -1 ------- Run | Yrd Mat Sub Rec Scr Fac Ext Cet Arc Hub Fac Was Fac Upp Upp Zhi Pro Res Arm Lab Res Qua Frg Acc Com Traps Triggered 28 | . 1 2 . . 1 2 . . . 2 . . . . . . . 1 . . 4 13 1 1 Indirectly 2 | . . . . . . . . . . . . . . . . . . . . . . 2 . . Trap Hack Attempts 2 | . . . . . . 2 . . . . . . . . . . . . . . . . . . Triggered . | . . . . . . . . . . . . . . . . . . . . . . . . . Disarmed . | . . . . . . . . . . . . . . . . . . . . . . . . . Reprogrammed 1 | . . . . . . 1 . . . . . . . . . . . . . . . . . . Reused . | . . . . . . . . . . . . . . . . . . . . . . . . . Traps Extracted . | . . . . . . . . . . . . . . . . . . . . . . . . . Installed . | . . . . . . . . . . . . . . . . . . . . . . . . . Triggered . | . . . . . . . . . . . . . . . . . . . . . . . . . Machines | -11 -10 -10 -7 -7 -5 -5 -5 -5 -5 -4 -4 -4 -4 -4 -4 -3 -3 -3 -3 -2 -2 -2 -1 -1 ---------- Run | Yrd Mat Sub Rec Scr Fac Ext Cet Arc Hub Fac Was Fac Upp Upp Zhi Pro Res Arm Lab Res Qua Frg Acc Com Machines Disabled 56 | . . 2 . . 2 . . 1 1 1 . . . 2 . 1 . 2 5 . 9 25 3 2 Max in Single Turn 2 | . . 1 . . 1 . . 1 . 1 . . . 1 . 1 . 1 1 . 1 2 1 1 Garrison Access 3 | . . . . . . . . . . . . . . . . . . . . . . 1 2 . Network Hub 1 | . . . . . . . . . 1 . . . . . . . . . . . . . . . Machines Repaired . | . . . . . . . . . . . . . . . . . . . . . . . . . Machines Dismantled . | . . . . . . . . . . . . . . . . . . . . . . . . . Machines Sabotaged 1 | . . . . . . . . . 1 . . . . . . . . . . . . . . . Overloaded Fab Kills . | . . . . . . . . . . . . . . . . . . . . . . . . . Hacking | -11 -10 -10 -7 -7 -5 -5 -5 -5 -5 -4 -4 -4 -4 -4 -4 -3 -3 -3 -3 -2 -2 -2 -1 -1 --------- Run | Yrd Mat Sub Rec Scr Fac Ext Cet Arc Hub Fac Was Fac Upp Upp Zhi Pro Res Arm Lab Res Qua Frg Acc Com Machines Accessed 93 | . 8 2 2 7 12 10 . . 4 6 . . . 2 4 1 2 2 1 7 10 6 3 4 Terminals 55 | . 6 . 1 . 7 10 . . 4 1 . . . 1 . 1 1 1 . 5 7 5 1 4 Fabricators 4 | . . . . . 1 . . . . 2 . . . . . . . 1 . . . . . . Repair Stations 2 | . . . . . . . . . . . . . . . . . . . . 1 1 . . . Recycling Units 12 | . 2 . 1 . 4 . . . . 3 . . . . . . 1 . . 1 . . . . Scanalyzers 1 | . . . . . . . . . . . . . . . . . . . . . 1 . . . Garrison Access 4 | . . . . . . . . . . . . . . . . . . . . . 1 1 2 . Total Hacks 273 | . 21 13 3 53 22 18 . . 15 17 . . . 7 17 4 3 7 1 21 27 6 6 12 Successful 173 | . 8 13 1 53 8 10 . . 11 7 . . . 7 17 4 2 1 1 10 7 5 3 5 Failed 99 | . 13 . 2 . 14 8 . . 4 10 . . . . . . . 6 . 11 20 1 3 7 Catastrophic 17 | . 1 . 1 . 2 1 . . 1 1 . . . . . . . . . 2 5 1 . 2 Database Lockouts 1 | . . . . . . . . . . . . . . . . . 1 . . . . . . . Manual 72 | . 6 . 1 . 15 2 1 . 10 9 . . . . . . 2 . . 13 5 1 . 7 Terminals 140 | . 17 . 2 . 15 18 . . 15 3 . . . 6 . 4 2 4 . 16 18 5 3 12 Fabricators 11 | . . . . . 2 . . . . 6 . . . . . . . 3 . . . . . . Repair Stations 7 | . . . . . . . . . . . . . . . . . . . . 4 3 . . . Recycling Units 20 | . 4 . 1 . 5 . . . . 8 . . . . . . 1 . . 1 . . . . Scanalyzers 4 | . . . . . . . . . . . . . . . . . . . . . 4 . . . Garrison Access 6 | . . . . . . . . . . . . . . . . . . . . . 2 1 3 . Terminal Hacks 139 | . 6 13 . 53 4 9 . . 7 1 . . . 7 17 4 1 1 1 3 4 3 1 4 Record 81 | . . 12 . 52 . . . . . . . . . 6 5 4 . . 1 . . 1 . . Part Schematic 6 | . . . . . . . . . 1 . . . . . 4 . 1 . . . . . . . Robot Analysis 6 | . 2 . . . . . . . . . . . . . 4 . . . . . . . . . Prototype ID Bank 5 | . 1 . . . . . . . . . . . . . 4 . . . . . . . . . Open Door 11 | . . . . 1 1 7 . . . . . . . 1 . . . . . 1 . . . . Level Access Points 3 | . . . . . . . . . 1 . . . . . . . . . . . . 1 . 1 Branch Access Points 3 | . . . . . . . . . . 1 . . . . . . . . . 1 . . 1 . Emergency Access Points 1 | . . . . . . . . . 1 . . . . . . . . . . . . . . . Machine Index 2 | . . . . . . . . . . . . . . . . . . 1 . . . . . 1 Terminal Index 1 | . . . . . . . . . 1 . . . . . . . . . . . . . . . Unreport Threat 3 | . . . . . . . . . . . . . . . . . . . . . 2 . . 1 Locate Traps 2 | . . . . . 1 . . . . . . . . . . . . . . . . . . 1 Recall Extermination 1 | . . . . . 1 . . . . . . . . . . . . . . . . . . . Hauler Manifests 3 | . . . . . 1 . . . 1 . . . . . . . . . . . 1 . . . Registered Components 3 | . 1 . . . . 1 . . . . . . . . . . . . . . 1 . . . Registered Prototypes 2 | . . . . . . . . . 1 . . . . . . . . . . 1 . . . . Zone Layout 4 | . 2 . . . . 1 . . 1 . . . . . . . . . . . . . . . Proto ID Catalog 2 | . . 1 . . . . . . . . . . . . . . . . . . . 1 . . Fabricator Hacks 1 | . . . . . . . . . . 1 . . . . . . . . . . . . . . Network Status 1 | . . . . . . . . . . 1 . . . . . . . . . . . . . . Repair Station Hacks 2 | . . . . . . . . . . . . . . . . . . . . 2 . . . . Scan Component 1 | . . . . . . . . . . . . . . . . . . . . 1 . . . . Repair 1 | . . . . . . . . . . . . . . . . . . . . 1 . . . . Recycling Unit Hacks 5 | . 1 . . . . . . . . 2 . . . . . . 1 . . 1 . . . . Retrieve Components 5 | . 1 . . . . . . . . 2 . . . . . . 1 . . 1 . . . . Scanalyzer 1 | . . . . . . . . . . . . . . . . . . . . . 1 . . . Insert Component 1 | . . . . . . . . . . . . . . . . . . . . . 1 . . . Garrison Access Hacks 3 | . . . . . . . . . . . . . . . . . . . . . . 1 2 . Seal Access 3 | . . . . . . . . . . . . . . . . . . . . . . 1 2 . Unauthorized Hacks 22 | . 1 . 1 . 4 1 . . 4 3 . . . . . . . . . 4 2 1 . 1 Terminals 13 | . . . . . . 1 . . 4 . . . . . . . . . . 4 2 1 . 1 Track 3 | . . . . . . . . . . . . . . . . . . . . 2 1 . . . Assimilate 1 | . . . . . . . . . . . . . . . . . . . . . . 1 . . Botnet 5 | . . . . . . 1 . . 2 . . . . . . . . . . 1 . . . 1 Operators 2 | . . . . . . . . . . . . . . . . . . . . 1 1 . . . Sabotage 2 | . . . . . . . . . 2 . . . . . . . . . . . . . . . Fabricators 2 | . . . . . 1 . . . . 1 . . . . . . . . . . . . . . Haulers 2 | . . . . . 1 . . . . 1 . . . . . . . . . . . . . . Repair Stations . | . . . . . . . . . . . . . . . . . . . . . . . . . Recycling Units 7 | . 1 . 1 . 3 . . . . 2 . . . . . . . . . . . . . . Recyclers 1 | . . . . . . . . . . 1 . . . . . . . . . . . . . . Tunnel 2 | . 1 . 1 . . . . . . . . . . . . . . . . . . . . . Fedlink 3 | . . . . . 3 . . . . . . . . . . . . . . . . . . . Scrapoids 1 | . . . . . . . . . . 1 . . . . . . . . . . . . . . Scanalyzers . | . . . . . . . . . . . . . . . . . . . . . . . . . Garrison Access . | . . . . . . . . . . . . . . . . . . . . . . . . . Data Cores Recovered 1 | . . . . . . . . . . . . . . . . . 1 . . . . . . . Used 1 | . . . . . . . . . . . . . . . . . 1 . . . . . . . Hacking Detections 58 | . 7 . 1 . 9 8 . . 2 5 . . . 1 . 1 . 2 . 4 10 2 2 4 Full Trace Events 2 | . . . 1 . . . . . . . . . . . . . . . . . 1 . . . Feedback Events . | . . . . . . . . . . . . . . . . . . . . . . . . . Feedback Blocked . | . . . . . . . . . . . . . . . . . . . . . . . . . Robot Schematics Acquired . | . . . . . . . . . . . . . . . . . . . . . . . . . Robots Built . | . . . . . . . . . . . . . . . . . . . . . . . . . Authchips . | . . . . . . . . . . . . . . . . . . . . . . . . . Time . | . . . . . . . . . . . . . . . . . . . . . . . . . Total Robot Build Rating . | . . . . . . . . . . . . . . . . . . . . . . . . . Part Schematics Acquired 9 | . . . . . . . . . 1 . . . . . 4 . 1 . . . . 3 . . Parts Built . | . . . . . . . . . . . . . . . . . . . . . . . . . Authchips . | . . . . . . . . . . . . . . . . . . . . . . . . . Time . | . . . . . . . . . . . . . . . . . . . . . . . . . Total Part Build Rating . | . . . . . . . . . . . . . . . . . . . . . . . . . Parts Repaired 1 | . . . . . . . . . . . . . . . . . . . . 1 . . . . Time 51 | . . . . . . . . . . . . . . . . . . . . 51 . . . . Parts Recycled . | . . . . . . . . . . . . . . . . . . . . . . . . . Recycled Matter . | . . . . . . . . . . . . . . . . . . . . . . . . . Retrieved Matter . | . . . . . . . . . . . . . . . . . . . . . . . . . Retrieved Components 19 | . 9 . . . . . . . . 4 . . . . . . 3 . . 3 . . . . Parts Scanalyzed 1 | . . . . . . . . . . . . . . . . . . . . . 1 . . . Part Schematics Acquired . | . . . . . . . . . . . . . . . . . . . . . . . . . Parts Damaged . | . . . . . . . . . . . . . . . . . . . . . . . . . Bothacking | -11 -10 -10 -7 -7 -5 -5 -5 -5 -5 -4 -4 -4 -4 -4 -4 -3 -3 -3 -3 -2 -2 -2 -1 -1 ------------ Run | Yrd Mat Sub Rec Scr Fac Ext Cet Arc Hub Fac Was Fac Upp Upp Zhi Pro Res Arm Lab Res Qua Frg Acc Com Used RIF Installer . | . . . . . . . . . . . . . . . . . . . . . . . . . Robots Hacked 1 | . . . . . . 1 . . . . . . . . . . . . . . . . . . Non-combat 1 | . . . . . . 1 . . . . . . . . . . . . . . . . . . Combat . | . . . . . . . . . . . . . . . . . . . . . . . . . Robot Hacks Applied 2 | . . . . . . 2 . . . . . . . . . . . . . . . . . . parse_system 1 | . . . . . . 1 . . . . . . . . . . . . . . . . . . no_distress 1 | . . . . . . 1 . . . . . . . . . . . . . . . . . . Relay Couplers Released . | . . . . . . . . . . . . . . . . . . . . . . . . . Fabnet Peak Effective % . | . . . . . . . . . . . . . . . . . . . . . . . . . Robots Rewired 14 | . . . . . . 11 . . 1 1 . . . . . . . . . . . 1 . . Allies Hacked . | . . . . . . . . . . . . . . . . . . . . . . . . . Hacks Repelled . | . . . . . . . . . . . . . . . . . . . . . . . . . Allies | -11 -10 -10 -7 -7 -5 -5 -5 -5 -5 -4 -4 -4 -4 -4 -4 -3 -3 -3 -3 -2 -2 -2 -1 -1 -------- Run | Yrd Mat Sub Rec Scr Fac Ext Cet Arc Hub Fac Was Fac Upp Upp Zhi Pro Res Arm Lab Res Qua Frg Acc Com Total Allies 65 | . . 9 . . . 20 5 . 1 6 1 . . 6 . 6 4 . . . . 1 . 6 Largest Group 10 | . . 6 4 . . 10 10 8 8 6 5 . . 4 4 4 4 4 . . . 1 . 6 Highest-Rated Group 595 | . . 114 74 . . 418 595 581 581 263 235 . . 324 324 324 324 324 . . . 64 . 81 Highest-Rated Ally 159 | . . 19 19 . . 159 159 96 96 50 50 . . 81 81 81 81 81 . . . 64 . 14 Total Orders 6 | . . . . . . . . . . 2 2 . . . . . . . . 1 1 . . . STAY 1 | . . . . . . . . . . . 1 . . . . . . . . . . . . . FOLLOW 1 | . . . . . . . . . . . 1 . . . . . . . . . . . . . RETURN 4 | . . . . . . . . . . 2 . . . . . . . . . 1 1 . . . Ally Attacks 459 | . . 17 5 . . 119 50 . 67 4 88 . . 17 . 40 3 10 . . . 1 . 38 Total Damage 11136 | . . 336 215 . . 2187 1118 . 2229 89 1897 . . 553 . 1083 211 193 . . . 68 . 957 Kills 51 | . . 3 1 . . 9 6 . 12 1 3 . . 7 . 7 1 1 . . . . . . Allies Corrupted 1 | . . . . . . . . . . . 1 . . . . . . . . . . . . . Allies Melted 1 | . . . . . . 1 . . . . . . . . . . . . . . . . . . Intel | -11 -10 -10 -7 -7 -5 -5 -5 -5 -5 -4 -4 -4 -4 -4 -4 -3 -3 -3 -3 -2 -2 -2 -1 -1 ------- Run | Yrd Mat Sub Rec Scr Fac Ext Cet Arc Hub Fac Was Fac Upp Upp Zhi Pro Res Arm Lab Res Qua Frg Acc Com Active Infowar (turns) 28859 | 136 1004 2459 54 2834 942 1441 233 275 421 1593 270 337 767 881 258 1200 188 560 4012 910 3081 3133 838 1032 Optics 17885 | . . . . . . . . . . 461 270 337 767 881 258 1200 188 560 4012 910 3081 3090 838 1032 Sensors 8416 | . . . . . 699 363 . . . 838 58 191 767 824 186 771 . . . . 2270 1449 . . Structural 6273 | . . . . . . . . . . . . . . 53 . 2 68 409 4012 770 388 571 . . Seismic 12466 | 136 1004 2459 54 2834 827 1383 . . 351 305 267 260 767 177 . 98 126 362 . 678 378 . . . Cloaking 306 | . . . . . . . . . . . . . . . . . . . . . . 306 . . Jamming 11709 | . . . . . 438 1112 233 275 421 1473 . . . . . 165 51 513 4012 910 1595 511 . . Robot Analysis Total 6 | . 2 . . . . . . . . . . . . . 4 . . . . . . . . . Derelict Logs Recovered 8 | . . 1 . 3 . . . . . . . . 2 2 . . . . . . . . . . Drone Launches 4 | . . . . . . . . . . 2 . . . . . . . . . 1 1 . . . Drone Recoveries 4 | . . . . . . . . . . 2 . . . . . . . . . 1 1 . . . Exploration | -11 -10 -10 -7 -7 -5 -5 -5 -5 -5 -4 -4 -4 -4 -4 -4 -3 -3 -3 -3 -2 -2 -2 -1 -1 ------------- Run | Yrd Mat Sub Rec Scr Fac Ext Cet Arc Hub Fac Was Fac Upp Upp Zhi Pro Res Arm Lab Res Qua Frg Acc Com Turns Passed 34500 | 236 1004 4188 436 5758 1075 1557 309 275 421 1595 270 337 767 881 258 1200 188 560 4012 910 3081 3312 838 1032 Spaces Moved 19230 | 131 627 2476 196 3402 651 986 141 87 276 971 141 177 461 519 146 822 146 308 425 617 2273 2014 631 606 Core 120 | . . . . 115 . . . . . . . . . . . . . . . . . . . 5 Treads 7585 | . 182 2476 196 3048 131 . . . . . 100 177 461 519 146 64 . 85 . . . . . . Legs 11286 | 131 445 . . . 520 986 141 87 276 971 41 . . . . 758 146 223 425 617 2273 2014 631 601 Wheels . | . . . . . . . . . . . . . . . . . . . . . . . . . Hover . | . . . . . . . . . . . . . . . . . . . . . . . . . Flight 239 | . . . . 239 . . . . . . . . . . . . . . . . . . . . Fastest Speed 35 | 120 120 160 160 35 120 120 120 120 120 120 120 160 160 160 163 120 120 112 112 112 112 103 103 50 Average Speed 136 | 120 131 160 188 168 127 120 120 120 120 120 154 160 160 162 163 125 120 133 112 112 114 115 103 106 Slowest Speed 245 | 120 160 160 240 240 160 120 190 120 120 120 240 160 160 163 163 245 120 240 112 224 230 240 103 190 Overloaded Moves 45 | . . . . . . . . . . . . . . . . . . . . 2 15 28 . . Propulsion Burnouts . | . . . . . . . . . . . . . . . . . . . . . . . . . Robots Hopped 1 | . . . . . . . . . 1 . . . . . . . . . . . . . . . Potential Cave-ins 8 | . . . . . . 8 . . . . . . . . . . . . . . . . . . Cave-ins Triggered 1 | . . . . . . . . . . . . . . . . . . . . . . 1 . . Teleports 14 | . . . . . . . . . . . . . . . . . . 1 . 1 1 11 . . Exploration Rate (%) 50 | 5 93 95 31 94 21 58 48 73 34 26 89 7 61 77 61 81 2 22 91 14 82 50 23 31 Regions Visited 24 Branch Regions 16 Pre-discovered Areas 16 | . 1 1 1 6 1 . . . . . . . 1 1 3 1 . . . . . . . . Known Exits Taken 17 | . . . . . 1 1 1 1 1 . . 1 1 1 1 1 1 1 1 1 1 1 1 . Unknown Exits Taken 5 | 1 1 1 1 1 . . . . . . . . . . . . . . . . . . . . Scrap Searched 20 | . . 10 . 4 . . . . . . . . 1 3 . 2 . . . . . . . . Spaces Dug 283 | . 2 . . . 6 3 . . 4 21 . 2 7 4 . 35 . 6 . 6 22 23 51 91 Terrain Destroyed 864 | . 2 10 7 . 6 25 . . 5 24 112 2 11 4 . 147 . 7 . 9 28 71 169 225 Melee 132 | . . . . . 6 1 . . 4 17 . 2 4 4 . 2 . 6 . 6 21 14 14 31 Projectile 93 | . 2 . 7 . . 11 . . 1 7 . . 7 . . 1 . 1 . 3 7 20 9 17 AOE 639 | . . 10 . . . 13 . . . . 112 . . . . 144 . . . . . 37 146 177 Terrain Rammed . | . . . . . . . . . . . . . . . . . . . . . . . . . Walls Destroyed . | . . . . . . . . . . . . . . . . . . . . . . . . . Machines Disabled . | . . . . . . . . . . . . . . . . . . . . . . . . . Actions | -11 -10 -10 -7 -7 -5 -5 -5 -5 -5 -4 -4 -4 -4 -4 -4 -3 -3 -3 -3 -2 -2 -2 -1 -1 --------- Run | Yrd Mat Sub Rec Scr Fac Ext Cet Arc Hub Fac Was Fac Upp Upp Zhi Pro Res Arm Lab Res Qua Frg Acc Com Total 26122 | 160 726 2617 237 3450 817 1215 252 227 351 1240 171 214 478 547 167 961 156 405 3918 750 2634 2795 767 867 Wait 4470 | . 31 61 19 . 63 55 49 112 38 75 . 17 . 4 3 70 4 23 3457 13 78 256 20 22 Move 19205 | 130 626 2475 195 3401 650 985 140 86 273 971 140 176 460 518 145 821 145 307 424 616 2272 2013 630 606 Hop 1 | . . . . . . . . . 1 . . . . . . . . . . . . . . . Pick Up 212 | 2 7 6 4 21 10 9 9 . 4 16 1 4 1 2 3 2 1 5 4 9 34 44 8 6 Fast Attach 152 | 1 1 2 1 6 13 10 4 2 6 4 6 1 . 7 7 10 . 5 3 3 28 23 2 7 Attach 196 | . 1 1 . 3 10 11 4 1 1 24 2 . 3 1 . 10 1 11 . 14 15 42 11 30 Detach 109 | . . 1 . 2 4 3 1 1 1 10 2 1 2 1 . 7 1 5 . 5 13 28 9 12 Swap 260 | . 6 29 3 1 2 5 7 . 4 16 3 6 . 2 . 4 2 4 . 19 39 84 14 10 Drop 229 | . 8 10 2 16 13 2 12 1 11 5 1 . 1 7 9 11 . 7 2 5 49 47 5 5 Fire 445 | 27 43 32 13 . . 17 14 11 1 7 16 . 7 1 . 18 . 1 . 26 32 81 28 70 Melee 812 | . . . . . 52 106 12 13 9 107 . 9 4 4 . 8 1 37 28 37 74 173 40 98 Ram . | . . . . . . . . . . . . . . . . . . . . . . . . . Kick 4 | . 1 . . . . . . . . 1 . . . . . . . . . . . 1 . 1 Crush 2 | . 2 . . . . . . . . . . . . . . . . . . . . . . . Escape Stasis 5 | . . . . . . 5 . . . . . . . . . . . . . . . . . . Rewire 14 | . . . . . . 5 . . 2 4 . . . . . . . . . . . 3 . . Trap 2 | . . . . . . 2 . . . . . . . . . . . . . . . . . . Miscellaneous 4 | . . . . . . . . . . . . . . . . . 1 . . 3 . . . . Route ------- -11/Scrapyard -10/Materials (discovered 6 exits: [*Mat x3] / [*Min x2] / *Sub) -10/Subcaves (discovered 3 exits: *Mat x2 / *Rec) -7/Recycling -7/Scraptown (discovered 2 exits: *Fac x2) -5/Factory (discovered 8 exits: Fac x4 / Upp x2 / *Ext x2) -5/Extension (discovered 2 exits: *Fac / *Cet) -5/Cetus -5/Archives -5/Hub_04(d) (discovered 4 exits: *Fac x4) -4/Factory (discovered 5 exits: Res x3 / Upp x2) -4/Waste -4/Factory -4/Upper Caves -4/Upper Caves (discovered 2 exits: *Res / *Zhi) -4/Zhirov -3/Proximity Caves -3/Research (discovered 4 exits: Res x2 / *Arm / Tes) -3/Armory -3/Lab -2/Research (discovered 2 exits: *Qua x2) -2/Quarantine (discovered 3 exits: *Acc / [*Sec] / *Frg) -2/Protoforge -1/Access -1/Command (discovered 2 exits: Sur x2) History --------- Turn | Location | Event 1 | -11/Scrapyard | Discovered new exit (range 3) 237 | -11/Scrapyard | Entered Materials 240 | -10/Materials | Discovered new exit (range 15) 314 | -10/Materials | Build established: Mutant 398 | -10/Materials | Discovered new exit (range 14) 674 | -10/Materials | Discovered new exit (range 16) 840 | -10/Materials | Discovered new exit (range 8) 1129 | -10/Materials | Discovered new exit (range 6) 1233 | -10/Materials | Discovered new exit (range 6) 1241 | -10/Materials | Entered Subcaves 1439 | -10/Subcaves | Visited 4L-MR0's lab 1463 | -10/Subcaves | Found Meta Core 1761 | -10/Subcaves | Learned 8 Materials zone layouts 2142 | -10/Subcaves | Discovered new exit (range 7) 2406 | -10/Subcaves | Discovered new exit (range 16) 2462 | -10/Subcaves | Visited triangular shrine 2474 | -10/Subcaves | Found Prototype Device 2481 | -10/Subcaves | Identified V3-11A's Pendant 2486 | -10/Subcaves | Befriended Subdweller 2544 | -10/Subcaves | Shifting Twisted Machinery released Shrapnel Trap 2648 | -10/Subcaves | Befriended Subdweller 2663 | -10/Subcaves | Befriended Subdweller 2669 | -10/Subcaves | Disturbed a concealed Subdweller 3175 | -10/Subcaves | Shifting Twisted Machinery released Sub. Laser 3474 | -10/Subcaves | Befriended Subdweller 3474 | -10/Subcaves | Befriended Subdweller 3621 | -10/Subcaves | Ambushed by angry Subdweller bent on revenge 3624 | -10/Subcaves | Befriended Subdweller 3816 | -10/Subcaves | Visited Clippyterm 3821 | -10/Subcaves | Identified exit to Materials 3958 | -10/Subcaves | Shifting Twisted Machinery released Shrapnel Trap 3966 | -10/Subcaves | Befriended Subdweller 3971 | -10/Subcaves | Befriended Subdweller 4018 | -10/Subcaves | Learned location of Zion (-7) 4018 | -10/Subcaves | Met a Zionite searching for "candidates" 4308 | -10/Subcaves | A swath of the cavern ceiling suddenly collapsed 4421 | -10/Subcaves | Shifting Twisted Machinery released Battle Rifle 4633 | -10/Subcaves | Befriended Subdweller 5429 | -10/Subcaves | Entered Recycling 5429 | -7/Recycling | Accompanied by 4 allies 5482 | -7/Recycling | Core integrity fell below 50% 5497 | -7/Recycling | Lost 4 allies 5805 | -7/Recycling | Scanned before Scraplab entrance 5839 | -7/Recycling | Entered Scraplab 5861 | -7/Recycling | Discovered new exit (range 3) 5865 | -7/Recycling | Entered Scraptown 6228 | -7/Scraptown | Visited CPS Storage 6247 | -7/Scraptown | Visited Cyclists 6321 | -7/Scraptown | Learned location of Extension (-5) 6345 | -7/Scraptown | Delivered V3-11A's Pendant to T0-NE2 in exchange for information 6806 | -7/Scraptown | Heard Great Nut preacher, LISTEN AND RECITE! 6881 | -7/Scraptown | Discovered new exit (range 5) 7053 | -7/Scraptown | Scanned Subdweller tech in exchange for log data 7061 | -7/Scraptown | Learned Factory emergency access door positions 7063 | -7/Scraptown | Learned 12 Factory zone layouts 7065 | -7/Scraptown | Learned location of 1 exit from Research 7121 | -7/Scraptown | Visited Red Mages 7157 | -7/Scraptown | Visited Assassins FH 7334 | -7/Scraptown | Visited Shadow of the Wyrm 7389 | -7/Scraptown | Visited IN-MT5's Study 7428 | -7/Scraptown | Visited Fellowship of the Rings 7567 | -7/Scraptown | Visited UFD Registry 7567 | -7/Scraptown | Registered with UFD as "Nanocase" 7677 | -7/Scraptown | Visited Curators Association 7795 | -7/Scraptown | Visited Junk Repository 7845 | -7/Scraptown | Visited Cartography Club 7872 | -7/Scraptown | Visited Sword Containment 7903 | -7/Scraptown | Visited Derelict Rescue Squad 7941 | -7/Scraptown | Visited Research Penetration Think Tank 7997 | -7/Scraptown | Visited A0-MCA Data Center 8030 | -7/Scraptown | Visited Science Testing Area 8069 | -7/Scraptown | Visited Chapter 10 8184 | -7/Scraptown | Found DRS Beacon 8340 | -7/Scraptown | Delivered Scrap Shield to a Scientist 8737 | -7/Scraptown | Found Deep Structural Scanner 8741 | -7/Scraptown | Learned location of Recycling (-7) 8741 | -7/Scraptown | Learned location of Lower Caves (-6) 8741 | -7/Scraptown | Learned location of Archives (-5) 8741 | -7/Scraptown | Learned 8 Factory zone layouts 8741 | -7/Scraptown | Learned 12 Factory zone layouts 8741 | -7/Scraptown | Learned 16 Factory zone layouts 8741 | -7/Scraptown | Learned 24 Factory zone layouts 8741 | -7/Scraptown | Learned 8 Research zone layouts 8741 | -7/Scraptown | Learned 8 Access zone layouts 8741 | -7/Scraptown | Learned 4 Mines zone layouts 8741 | -7/Scraptown | Learned 16 Lower Caves zone layouts 8741 | -7/Scraptown | Learned 16 Upper Caves zone layouts 8741 | -7/Scraptown | Learned 24 Upper Caves zone layouts 8741 | -7/Scraptown | Learned Storage emergency access door positions 8741 | -7/Scraptown | Learned location of 1 exit from Proximity Caves 8741 | -7/Scraptown | Learned location of 3 exits from Proximity Caves 8931 | -7/Scraptown | Discovered new exit (range 3) 9168 | -7/Scraptown | Entered Cyclist Reading Room 9989 | -7/Scraptown | Given a C rating by A0-MCA 9995 | -7/Scraptown | Found A0-MCA's Component Scanner 10993 | -7/Scraptown | Guru changed UFD alias to "Electromaster" 11449 | -7/Scraptown | Found Scrap Suit 11535 | -7/Scraptown | Met Optimus 11535 | -7/Scraptown | Accepted into 0bPrime 11623 | -7/Scraptown | Entered Factory 11623 | -5/Factory | Evolved 10 slots: Power x1, Propulsion x3, Utility x6 11624 | -5/Factory | Identified exit to Extension 11625 | -5/Factory | Identified exit to Factory 11625 | -5/Factory | Identified exit to Upper Caves 12272 | -5/Factory | Loaded intel: 8 recycling unit locations 12352 | -5/Factory | Learned location of Protoforge (-2) 12698 | -5/Factory | Entered Extension 12781 | -5/Extension | Rescued a captive Derelict 12955 | -5/Extension | Build established: Scavenger-Mutant 13237 | -5/Extension | Lost 8 parts (2p4n2u) 13271 | -5/Extension | Rescued a captive Derelict 13273 | -5/Extension | Rescued a captive Derelict 13275 | -5/Extension | Rescued a captive Derelict 13311 | -5/Extension | Rescued a captive Derelict 13334 | -5/Extension | Rescued a captive Derelict 13334 | -5/Extension | Rescued a captive Derelict 13691 | -5/Extension | Core integrity fell below 50% 13764 | -5/Extension | Rescued a captive Derelict 13765 | -5/Extension | Rescued a captive Derelict 14122 | -5/Extension | Rescued A7 14144 | -5/Extension | Lost 3 parts (2n1w) 14210 | -5/Extension | Discovered exit to Factory (range 10) 14211 | -5/Extension | Discovered new exit (range 6) 14234 | -5/Extension | Identified exit to Cetus 14255 | -5/Extension | Entered Cetus 14255 | -5/Cetus | Accompanied by 10 allies (A7) 14260 | -5/Cetus | Acquired a Cetus Manufacturing Module code from A7 14271 | -5/Cetus | Spotted Cetus Guard 14271 | -5/Cetus | Spotted Cetus Guard 14274 | -5/Cetus | Spotted Cetus Guard 14276 | -5/Cetus | Spotted Cetus Guard 14294 | -5/Cetus | Allies destroyed Cetus Guard 14296 | -5/Cetus | Allies destroyed Cetus Guard 14301 | -5/Cetus | Destroyed Cetus Guard 14304 | -5/Cetus | Destroyed Cetus Guard 14334 | -5/Cetus | Lost 3 parts (1n1u1w) 14340 | -5/Cetus | Lost 5 allies 14397 | -5/Cetus | Started Cetus Manufacturing Module 14411 | -5/Cetus | Discovered new exit (range 16) 14422 | -5/Cetus | Manufactured an Enhanced Grunt 14445 | -5/Cetus | Murdered A7 14447 | -5/Cetus | Manufactured an Enhanced Grunt 14448 | -5/Cetus | Extracted ID and sensor layout for unrecognized location from A7's data core 14452 | -5/Cetus | Found Prototype Protection 14452 | -5/Cetus | Identified Med. Regenerative Plating 14472 | -5/Cetus | Manufactured an Enhanced Grunt 14497 | -5/Cetus | Manufactured an Enhanced Grunt 14510 | -5/Cetus | Identified exit to Archives 14522 | -5/Cetus | Manufactured an Enhanced Grunt 14564 | -5/Cetus | Entered Archives 14564 | -5/Archives | Accompanied by 8 allies 14787 | -5/Archives | Met Zhirov 14793 | -5/Archives | Reinforcements dispatched to Archives 14802 | -5/Archives | Discovered new exit (range 15) 14818 | -5/Archives | Identified exit to Hub_04(d) 14838 | -5/Archives | Reinforcements dispatched to Archives 14839 | -5/Archives | Entered Hub_04(d) 14839 | -5/Hub_04(d) | Accompanied by 8 allies 15208 | -5/Hub_04(d) | Network Hub disabled 15237 | -5/Hub_04(d) | Lost 4 allies 15260 | -5/Hub_04(d) | Entered Factory 15260 | -4/Factory | Evolved 2 slots: Propulsion x1, Utility x1 15261 | -4/Factory | Identified exit to Research 15262 | -4/Factory | Identified exit to Upper Caves 16064 | -4/Factory | Lost 3 parts (2n1u) 16411 | -4/Factory | Cargo convoy interrupted 16551 | -4/Factory | Found Prototype Launcher 16585 | -4/Factory | Attached Meta Core, gained temporary slots: Propulsion, Utility, Weapon 16589 | -4/Factory | Found PL-3XN's Ring of Power 16614 | -4/Factory | Lost 5 parts (3p2n) 16665 | -4/Factory | Spotted B-86 Titan 16718 | -4/Factory | System corruption reached 10% 16723 | -4/Factory | Core integrity fell below 50% 16737 | -4/Factory | Identified Ragnarok Missile Launcher 16745 | -4/Factory | Lost 7 parts (1p5n1u) 16850 | -4/Factory | Scrapoid reinforcements arrived 16855 | -4/Factory | Sucked down chute 16855 | -4/Factory | Entered Waste 16855 | -4/Waste | Met up with 1 ally sucked down the chute earlier 16862 | -4/Waste | Found Broken Adv. Force Booster 16869 | -4/Waste | Spotted C-40 Crusher 16870 | -4/Waste | EMP discharged 16900 | -4/Waste | Allies destroyed C-40 Crusher 16905 | -4/Waste | 4 allies followed down the chute 16914 | -4/Waste | Spotted C-40 Crusher 16915 | -4/Waste | Found Damper Plating 16922 | -4/Waste | Allies destroyed C-40 Crusher 16954 | -4/Waste | Spotted C-40 Crusher 16970 | -4/Waste | EMP discharged 16970 | -4/Waste | Destroyed C-40 Crusher 16971 | -4/Waste | Spotted C-40 Crusher 16975 | -4/Waste | Spotted C-40 Crusher 16991 | -4/Waste | Spotted C-40 Crusher 16994 | -4/Waste | Allies destroyed C-40 Crusher 17030 | -4/Waste | Lost 4 allies 17070 | -4/Waste | EMP discharged 17110 | -4/Waste | Discovered new exit (range 10) 17123 | -4/Waste | Identified exit to Factory 17125 | -4/Waste | Entered Factory 17273 | -4/Factory | Discovered exit to Upper Caves (range 16) 17462 | -4/Factory | Entered Upper Caves 17464 | -4/Upper Caves | UFD Scientist delivered a prototype 17467 | -4/Upper Caves | Found Prototype Protection 17658 | -4/Upper Caves | Build established: Scavenger-Assassin 17923 | -4/Upper Caves | Learned Research terminal intel 18046 | -4/Upper Caves | Encountered a Warlord checkpoint 18135 | -4/Upper Caves | Discovered new exit (range 10) 18202 | -4/Upper Caves | Identified exit to Upper Caves 18229 | -4/Upper Caves | Entered another Upper Caves area 18230 | -4/Upper Caves | Discovered new exit (range 109) 18386 | -4/Upper Caves | Prototype Device suddenly appears! 18406 | -4/Upper Caves | Found Prototype Device 18406 | -4/Upper Caves | Identified Amulet of Y3-NDR 18482 | -4/Upper Caves | Joined by bewildered Wizard 18483 | -4/Upper Caves | Joined by bewildered Wizard 18483 | -4/Upper Caves | Joined by bewildered Wizard 18523 | -4/Upper Caves | Learned location of Quarantine (-2) 18528 | -4/Upper Caves | Joined by bewildered Wizard 18628 | -4/Upper Caves | Attracted the attention of an 0b10 base 18629 | -4/Upper Caves | Learned Research security intel 18629 | -4/Upper Caves | Learned Armory stockpile data 18629 | -4/Upper Caves | Learned Research trap positions 18629 | -4/Upper Caves | Learned 8 Research zone layouts 18650 | -4/Upper Caves | Joined by bewildered Wizard 18651 | -4/Upper Caves | Joined by bewildered Wizard 18755 | -4/Upper Caves | Encountered a Warlord checkpoint 18777 | -4/Upper Caves | Learned location of 1 exit from Upper Caves 19012 | -4/Upper Caves | Identified exit to Zhirov 19110 | -4/Upper Caves | Entered Zhirov 19110 | -4/Zhirov | Accompanied by 4 allies 19110 | -4/Zhirov | Discovered new exit (range 3) 19176 | -4/Zhirov | Learned location of Command (-1) 19272 | -4/Zhirov | Found Alien Artifact 19272 | -4/Zhirov | Identified Integrated Dissipator 19272 | -4/Zhirov | Installed Integrated Dissipator, increased core heat dissipation (+20) 19302 | -4/Zhirov | Found Alien Artifact 19363 | -4/Zhirov | Identified exit to Proximity Caves 19368 | -4/Zhirov | Entered Proximity Caves 19368 | -3/Proximity Caves | Accompanied by 4 allies 19372 | -3/Proximity Caves | Attracted the attention of an 0b10 checkpoint 19424 | -3/Proximity Caves | Lost 4 allies 19547 | -3/Proximity Caves | Identified Enh. Scrap Shield 19560 | -3/Proximity Caves | System corruption reached 30% 19653 | -3/Proximity Caves | Joined by bewildered Wizard 19654 | -3/Proximity Caves | Joined by bewildered Wizard 19697 | -3/Proximity Caves | Joined by bewildered Wizard 19697 | -3/Proximity Caves | Joined by bewildered Wizard 19828 | -3/Proximity Caves | Lost 4 allies 19856 | -3/Proximity Caves | Joined by bewildered Wizard 19857 | -3/Proximity Caves | Joined by bewildered Wizard 20295 | -3/Proximity Caves | Attracted the attention of an 0b10 base 20338 | -3/Proximity Caves | Destroyed 16 combat bots 20365 | -3/Proximity Caves | Learned Extension garrison access intel 20568 | -3/Proximity Caves | Entered Research 20568 | -3/Research | Evolved 2 slots: Power x1, Propulsion x1 20568 | -3/Research | Discovered new exit (range 8) 20569 | -3/Research | Identified exit to Testing 20570 | -3/Research | Identified exit to Research 20571 | -3/Research | Loaded intel: 86 trap records 20573 | -3/Research | Loaded intel: 22 terminal locations 20577 | -3/Research | Identified exit to Armory 20586 | -3/Research | Build established: Scavenger-Mutant 20606 | -3/Research | Joined by bewildered Wizard 20607 | -3/Research | Joined by bewildered Wizard 20607 | -3/Research | Joined by bewildered Wizard 20639 | -3/Research | Joined by bewildered Wizard 20663 | -3/Research | Found Fusion Bomb Launcher 20695 | -3/Research | Central database locked down 20756 | -3/Research | Entered Armory 20756 | -3/Armory | Accompanied by 4 allies 20778 | -3/Armory | Spotted B-86 Titan 20846 | -3/Armory | Lost 4 allies 21143 | -3/Armory | Found Gamma Bomb Array 21145 | -3/Armory | Found Gamma Bomb Array 21225 | -3/Armory | Identified Transdimensional Reconstructor 21225 | -3/Armory | Warped through subspace to slip node 21225 | -3/Armory | Discovered new exit (range 1) 21225 | -3/Armory | Identified exit to Lab 21316 | -3/Armory | Entered Lab 21316 | -3/Lab | Discovered exit to Research (range 9) 21317 | -3/Lab | Forged Quantum Companion 21324 | -3/Lab | Build established: Hacker-Mutant 21329 | -3/Lab | Hidden lab's door opened automatically 21329 | -3/Lab | Sensor layout match revealed 21330 | -3/Lab | Gained access to the hidden lab's interior 21505 | -3/Lab | Found Alien Artifact 21505 | -3/Lab | Identified Core Regenerator 21505 | -3/Lab | Used Core Regenerator, restored core integrity (+234) 21515 | -3/Lab | Found Alien Artifact 21515 | -3/Lab | Identified Integrated Reactor 21515 | -3/Lab | Installed Integrated Reactor, increased core energy generation (+10) 21525 | -3/Lab | Found Transdimensional Reconstructor 22382 | -3/Lab | Found Med. Regenerative Plating 25155 | -3/Lab | Found Prototype Hackware 25155 | -3/Lab | Identified Quantum Router 25291 | -3/Lab | Found Alien Artifact 25313 | -3/Lab | Unable to decrypt terminal 25318 | -3/Lab | Unable to decrypt terminal 25328 | -3/Lab | Entered Research 25328 | -2/Research | Evolved 2 slots: Utility x2 25357 | -2/Research | Found Exp. Signal Interpreter 25462 | -2/Research | Spotted B-90 Cyclops 25534 | -2/Research | Warped through subspace 25563 | -2/Research | Identified exit to Quarantine 25694 | -2/Research | Repaired Broken Adv. Force Booster? 25827 | -2/Research | Found Exp. Hacking Suite 26161 | -2/Research | Destroyed 9 combat bots 26238 | -2/Research | Entered Quarantine 26289 | -2/Quarantine | Found Alien Artifact 26289 | -2/Quarantine | Identified Phase Armor 26432 | -2/Quarantine | Found Alien Slashing Weapon 26682 | -2/Quarantine | System corruption reached 10% 26771 | -2/Quarantine | Identified Core Reset Matrix 26771 | -2/Quarantine | Identified Sigix Broadsword 26771 | -2/Quarantine | Used Core Reset Matrix 26775 | -2/Quarantine | Detected hypermatrix surge 26775 | -2/Quarantine | Sensed 15 artifacts in vicinity 26895 | -2/Quarantine | Found Subatomic Replicator 26899 | -2/Quarantine | Forged Prototype Slashing Weapon 26923 | -2/Quarantine | Build established: Hacker-Assassin 26947 | -2/Quarantine | Core integrity fell below 50% 27228 | -2/Quarantine | Cryocooling Duct disabled 27243 | -2/Quarantine | Ambient heat levels rising (+20) 27243 | -2/Quarantine | Non-combat units ordered to evacuate 27324 | -2/Quarantine | Discovered new exit (range 14) 27437 | -2/Quarantine | Cryocooling Duct disabled 27452 | -2/Quarantine | Ambient heat levels rising (+20) 27452 | -2/Quarantine | Combat units ordered to evacuate 27552 | -2/Quarantine | Quarantine Guard activated 27597 | -2/Quarantine | Build established: Alien-Assassin 27632 | -2/Quarantine | Spotted Quarantine Guard 27643 | -2/Quarantine | Destroyed Quarantine Guard 27746 | -2/Quarantine | Spotted Quarantine Guard 27755 | -2/Quarantine | Destroyed Quarantine Guard 27763 | -2/Quarantine | Identified exit to Access 27789 | -2/Quarantine | Found Transdimensional Reconstructor 27798 | -2/Quarantine | Found Dimensional Node Initializer 27798 | -2/Quarantine | Initialized slip node 27861 | -2/Quarantine | Found Core Stripper 27953 | -2/Quarantine | Spotted Fortress 27968 | -2/Quarantine | Destroyed Fortress 27980 | -2/Quarantine | Found Prototype Protection 27980 | -2/Quarantine | Identified Centrium Heavy Armor Plating 27991 | -2/Quarantine | Found Prototype Device 27991 | -2/Quarantine | Identified Thermal Barrier 28000 | -2/Quarantine | Found Prototype Device 28000 | -2/Quarantine | Identified Exp. EM Shield 28004 | -2/Quarantine | Found Prototype Device 28004 | -2/Quarantine | Identified Exp. Force Field 28158 | -2/Quarantine | Warped through subspace to slip node 28180 | -2/Quarantine | Found Transdimensional Reconstructor 28187 | -2/Quarantine | Found Dimensional Node Initializer 28256 | -2/Quarantine | Spotted Quarantine Guard 28263 | -2/Quarantine | Destroyed Quarantine Guard 28276 | -2/Quarantine | Spotted Quarantine Guard 28367 | -2/Quarantine | Found Terrabomb 28415 | -2/Quarantine | Destroyed Quarantine Guard 28704 | -2/Quarantine | Spotted Quarantine Guard 28907 | -2/Quarantine | Spotted Quarantine Guard 28915 | -2/Quarantine | Destroyed Quarantine Guard 29312 | -2/Quarantine | Discovered new exit (range 7) 29312 | -2/Quarantine | Discovered new exit (range 6) 29312 | -2/Quarantine | Spotted Quarantine Guard 29312 | -2/Quarantine | Spotted Quarantine Guard 29318 | -2/Quarantine | Identified exit to Protoforge 29319 | -2/Quarantine | Entered Protoforge 29320 | -2/Protoforge | Sensed 2 artifacts in vicinity 29355 | -2/Protoforge | Superfortress began startup sequence 29377 | -2/Protoforge | Spotted Hotshot 29378 | -2/Protoforge | Spotted Hotshot 29382 | -2/Protoforge | Spotted Hotshot 29383 | -2/Protoforge | Destroyed Hotshot 29386 | -2/Protoforge | Destroyed Hotshot 29414 | -2/Protoforge | Destroyed Hotshot 30156 | -2/Protoforge | Found Prototype Storage 30157 | -2/Protoforge | Identified Cep. Chromion Battery 30248 | -2/Protoforge | Used Terrabomb 30248 | -2/Protoforge | Additional patrols dispatched to research labs 30248 | -2/Protoforge | Spotted Hotshot 30248 | -2/Protoforge | Spotted Hotshot 30258 | -2/Protoforge | Spotted Hotshot 30266 | -2/Protoforge | Spotted Hotshot 30286 | -2/Protoforge | Destroyed Hotshot 30291 | -2/Protoforge | Destroyed Hotshot 30292 | -2/Protoforge | Destroyed Hotshot 30300 | -2/Protoforge | Destroyed Hotshot 30334 | -2/Protoforge | Build established: Scavenger-Assassin 30350 | -2/Protoforge | Found Prototype Device 30486 | -2/Protoforge | Forge Plexus network access discovered 30529 | -2/Protoforge | Spotted Immortal 30529 | -2/Protoforge | Spotted Immortal 30542 | -2/Protoforge | Spotted Decapitator 30542 | -2/Protoforge | Spotted Decapitator 30542 | -2/Protoforge | Spotted Decapitator 30542 | -2/Protoforge | Spotted Decapitator 30545 | -2/Protoforge | Destroyed Decapitator 30547 | -2/Protoforge | Destroyed Decapitator 30573 | -2/Protoforge | Destroyed Decapitator 30574 | -2/Protoforge | Core integrity fell below 20% 30576 | -2/Protoforge | Destroyed Decapitator 30577 | -2/Protoforge | Destroyed Immortal 30578 | -2/Protoforge | Destroyed Immortal 30588 | -2/Protoforge | Found Cep. Core Shell 30606 | -2/Protoforge | Lost 3 parts (1p2n) 30611 | -2/Protoforge | Found Cep. Plasma Driver 30616 | -2/Protoforge | Found Cep. Disintegration Ray 30648 | -2/Protoforge | Spotted Hotshot 30648 | -2/Protoforge | Spotted Hotshot 30668 | -2/Protoforge | Destroyed Hotshot 30682 | -2/Protoforge | Destroyed Hotshot 30713 | -2/Protoforge | Lost 3 parts (1n2u) 30827 | -2/Protoforge | Found Cep. Biometal Exoskeleton 30837 | -2/Protoforge | Found Faulty Cep. Biometal Exoskeleton 30838 | -2/Protoforge | Identified Crosscalibrator 30848 | -2/Protoforge | Found Faulty Cep. Biometal Exoskeleton 30933 | -2/Protoforge | Spotted V276-f 30933 | -2/Protoforge | Spotted V404-x 30938 | -2/Protoforge | Spotted V492-d 30939 | -2/Protoforge | Found Cep. Network Penetrator 30993 | -2/Protoforge | Spotted V543-r 30993 | -2/Protoforge | Spotted V820-z 30994 | -2/Protoforge | Spotted Decapitator 30994 | -2/Protoforge | Spotted Decapitator 30994 | -2/Protoforge | Spotted Decapitator 31003 | -2/Protoforge | Destroyed Decapitator 31003 | -2/Protoforge | Destroyed Decapitator 31003 | -2/Protoforge | Destroyed Decapitator 31009 | -2/Protoforge | System corruption reached 30% 31017 | -2/Protoforge | Destroyed V820-z 31038 | -2/Protoforge | Destroyed 7 combat bots 31046 | -2/Protoforge | Destroyed V543-r 31048 | -2/Protoforge | Lost 4 parts (4u) 31090 | -2/Protoforge | Found Prototype Protection 31090 | -2/Protoforge | Identified Cep. RG22 Armor 31092 | -2/Protoforge | Found Cep. Projectile Intercept Suite 31096 | -2/Protoforge | Found Cep. RG22 Armor 31102 | -2/Protoforge | Found Faulty Cep. Hardlight Director 31105 | -2/Protoforge | Found Faulty Cep. RG22 Armor 31109 | -2/Protoforge | Found Faulty Cep. Hardlight Director 31130 | -2/Protoforge | Found Cep. Core Shell 31134 | -2/Protoforge | Found Cep. Core Shell 31142 | -2/Protoforge | Found Cep. Core Shell 31261 | -2/Protoforge | Found Cep. Antigrav Storage Unit 31264 | -2/Protoforge | Found Cep. NT7 Matterbank 31269 | -2/Protoforge | Spotted V909-b 31270 | -2/Protoforge | Spotted V158-g 31272 | -2/Protoforge | Found Cep. Matter Streamer 31276 | -2/Protoforge | Found Cep. Chromion Battery 31370 | -2/Protoforge | Spotted Decapitator 31370 | -2/Protoforge | Spotted Decapitator 31370 | -2/Protoforge | Spotted Decapitator 31375 | -2/Protoforge | Destroyed Decapitator 31378 | -2/Protoforge | Destroyed Decapitator 31382 | -2/Protoforge | Destroyed Decapitator 31417 | -2/Protoforge | Found Cep. Weapon Articulator 31419 | -2/Protoforge | Found Faulty Cep. Melee Reflex Suite 31438 | -2/Protoforge | Found Femtoactuators 31441 | -2/Protoforge | Found Faulty Cep. Melee Reflex Suite 31447 | -2/Protoforge | Found Prototype Device 31447 | -2/Protoforge | Identified Exp. Force Booster 31454 | -2/Protoforge | Found Exp. Force Booster 31474 | -2/Protoforge | Found Faulty Femtoactuators 31569 | -2/Protoforge | First assault squad dispatched 31574 | -2/Protoforge | Spotted Immortal 31574 | -2/Protoforge | Spotted Immortal 31583 | -2/Protoforge | Destroyed Immortal 31590 | -2/Protoforge | Destroyed Immortal 31595 | -2/Protoforge | Found Cep. Core Shell 31636 | -2/Protoforge | Found Cep. Smart ZDS 31785 | -2/Protoforge | Spotted AP7-3 31785 | -2/Protoforge | Spotted AP7-3 31793 | -2/Protoforge | Destroyed AP7-3 31795 | -2/Protoforge | Destroyed AP7-3 31868 | -2/Protoforge | Found Cep. Thermoelectric Network 31873 | -2/Protoforge | Found Prototype Device 31873 | -2/Protoforge | Identified Cep. Cloak Mesh 31880 | -2/Protoforge | Found Prototype Energy Cannon 31897 | -2/Protoforge | Build established: Scavenger-Mutant 31937 | -2/Protoforge | Found Cep. Arcsight Missile Launcher 32047 | -2/Protoforge | Found Transdimensional Reconstructor 32057 | -2/Protoforge | Found Cep. Navigation Harness 32192 | -2/Protoforge | Crushed by falling debris 32231 | -2/Protoforge | Warped through subspace 32310 | -2/Protoforge | Destroyed 9 combat bots 32314 | -2/Protoforge | Lost 3 parts (3u) 32335 | -2/Protoforge | Found Cep. Weapon Articulator 32336 | -2/Protoforge | Spotted V546-y 32336 | -2/Protoforge | Spotted V673-l 32336 | -2/Protoforge | Spotted Immortal 32336 | -2/Protoforge | Spotted Immortal 32544 | -2/Protoforge | Found Cep. Plasma Driver 32546 | -2/Protoforge | Found Cep. Lightning Penetrator 32631 | -2/Protoforge | Entered Access 32631 | -1/Access | Evolved 2 slots: Weapon x2 32631 | -1/Access | Identified Cld. Directed Potential Cannon 32722 | -1/Access | Identified exit to Command 32841 | -1/Access | Spotted B-99 Colossus 32860 | -1/Access | Spotted B-99 Colossus 32918 | -1/Access | Build established: Hacker-Mutant 33131 | -1/Access | First assault squad dispatched 33191 | -1/Access | High security lockdown imminent 33229 | -1/Access | Destroyed 19 combat bots 33271 | -1/Access | High security lockdown engaged 33311 | -1/Access | Destroyed 10 combat bots 33465 | -1/Access | Build established: Hacker-Tank 33469 | -1/Access | Entered Command 33492 | -1/Command | Identified exit to Surface 33740 | -1/Command | Destroyed 11 combat bots 33969 | -1/Command | First assault squad dispatched 34039 | -1/Command | Spotted Striker 34040 | -1/Command | Spotted Executioner 34040 | -1/Command | Spotted Alpha 7 34040 | -1/Command | Spotted Striker 34044 | -1/Command | Spotted Alpha 7 34051 | -1/Command | Spotted Executioner 34052 | -1/Command | Destroyed Alpha 7 34072 | -1/Command | Destroyed Executioner 34072 | -1/Command | Destroyed Striker 34074 | -1/Command | High security lockdown imminent 34091 | -1/Command | Destroyed Striker 34098 | -1/Command | Destroyed Executioner 34112 | -1/Command | Destroyed Alpha 7 34117 | -1/Command | Build established: Hacker-Mutant 34130 | -1/Command | Lost 11 parts (4p1n5u1w) 34133 | -1/Command | Destroyed 20 combat bots 34135 | -1/Command | Spotted Executioner 34137 | -1/Command | Spotted Executioner 34154 | -1/Command | High security lockdown engaged 34164 | -1/Command | Destroyed Executioner 34167 | -1/Command | Spotted B-99 Colossus 34227 | -1/Command | Spotted Striker 34227 | -1/Command | Spotted Executioner 34246 | -1/Command | Destroyed Striker 34274 | -1/Command | Destroyed 18 combat bots 34287 | -1/Command | Destroyed Executioner 34313 | -1/Command | Lost 10 parts (3p1n5u1w) 34339 | -1/Command | Spotted M Guard 34339 | -1/Command | Spotted M Guard 34339 | -1/Command | Spotted Combat Programmer 34341 | -1/Command | Spotted Combat Programmer 34344 | -1/Command | Destroyed M Guard 34344 | -1/Command | Destroyed Combat Programmer 34353 | -1/Command | System corruption reached 10% 34356 | -1/Command | Destroyed M Guard 34359 | -1/Command | Destroyed Combat Programmer 34359 | -1/Command | All MAIN.C guards destroyed 34365 | -1/Command | Found Prototype Reactor 34365 | -1/Command | Identified Zero-point Reactor 34389 | -1/Command | Lost 3 parts (1n1u1w) 34410 | -1/Command | Met MAIN.C 34416 | -1/Command | 0b10 Conduit disabled 34459 | -1/Command | Core integrity fell below 50% 34470 | -1/Command | Emitted hypermatrix ping 34475 | -1/Command | Assembled emerged from beneath the floor 34480 | -1/Command | Core integrity fell below 20% 34488 | -1/Command | Destroyed MAIN.C Shell 34490 | -1/Command | MAIN.C activated Command garrisons 34501 | -1/Command | Destroyed by MAIN.C with Omega Cannon Last Messages --------------- 34488_ MAIN.C destroyed. 34488_ MAIN.C's core emerges from the rubble. 34488_ as-36792 destroyed. MAIN.C: Okay, we do this the hard way. At our weakest we defeated an entire Sigix starship! Did you really think you could overcome the vast resources of 0b10?! You don't stand a chance against what's coming. 34490_ ALERT: All Command garrisons activated. 34491_ 0b10 Conduit collapses. 34492_ as-38066 destroyed. 34492_ Acquired 728 matter. 34493_ 0b10 Conduit collapses. 34493_ MAIN.C Prototype Ballistic Gun severed. 34494_ 0b10 Conduit collapses. 34495_ as-62447 destroyed. 34496_ 0b10 Conduit collapses. 34498_ Knocked back. 34499_ 0b10 Conduit collapses. 34501_ Cep. Thermoelectric Network destroyed. [Achievement: Rambo] Map ----- +----------------------------------------------------+ | ?????????????????????????????????????????????????? | | ?????????????????????????????????????????????????? | | ?????????????????????????????????????????????????? | | ?????????????????????????????????????????????????? | | ?????????????????????????????????????????????????? | | ?????????????????????????????????????????????????? | | ?????????????????????????????????????????????????? | | ?????????????????????????????????????????????????? | | ?????????????????????????????????????????????????? | | ?????????????????????????????????????????????????? | | ?????????????????????????????????????????????????? | | ?????????????????????????????????????????????????? | | ?????????????????????????????????????????????????? | | ?????????????????????????????????????????????????? | | ?????????????????????????????????????????????????? | | ?????????????????######################??????????? | | ????????????????#""""""" """" #??????????? | | ????????????????#"" "" #??????????? | | ????????????????#""""" "" ############ | | ????????????????#""""""""""" + | | ????????????????#" " """ + | | ????????????????#"" ; | | ????????????????#"" " ############ | | ????????????????# " % #??????????? | | ????????????????# " M[ % #??????????? | | ????????????????# " @ % ""#??????????? | | ????????????????#"""" % """"#??????????? | | ????????????????#"" %% """"#??????????? | | ????????????????# % ""#??????????? | | ????????????????# #??????????? | | ????????????????# #??????????? | | ????????????????" " " " " " " #??????????? | | ????????????????" """ " " "" #??????????? | | ????????????????" " " " " #??????????? | | ????????????????# """""""""" " #??????????? | | ????????????????# " """ " """"""""#??????????? | | ????????????????# """ " " " #??????????? | | ????????????????#######################??????????? | | ?????????????????????????????????????????????????? | | ?????????????????????????????????????????????????? | | ?????????????????????????????????????????????????? | | ?????????????????????????????????????????????????? | | ?????????????????????????????????????????????????? | | ?????????????????????????????????????????????????? | | ?????????????????????????????????????????????????? | | ?????????????????????????????????????????????????? | | ?????????????????????????????????????????????????? | | ?????????????????????????????????????????????????? | | ?????????????????????????????????????????????????? | | ?????????????????????????????????????????????????? | +----------------------------------------------------+ Best States ------------- Heat Dissipation 98 Energy Generation 75 Energy Capacity 1320 Matter Stores 1050 Matter Capacity 1050 Sight Range 23 Robot Scan Range 16 Terrain Scan Density 10 Jamming Range 16 Cloak Strength 6 EM Shielding 4 Armor Coverage 1600 Resistance: KI 25 Resistance: TH 50 Resistance: EM 90 Core Shielding 90 Melee Speed Boost 50 Phase Shifting 10 Evasion (%) 82 Targeting Accuracy 30 Target Analysis 8 Armor Integrity Analysis 40 Recoil Reduction 6 Matter Filtering 50 Force Boost 50 Offensive Hacking 50 Defensive Hacking 25 Item Schematics ----------------- Cld. Linear Gravjet | -2/Protoforge | Archive Imp. Thermal Defense Suite | -2/Protoforge | Archive Spectral Analyzer | -2/Protoforge | Archive Robot Schematics ------------------ None Fabricated ------------ Nothing Repaired ---------- Adv. Force Booster | 18% | -2/Research | Broken Alien Tech Used ----------------- Integrated Dissipator Transdimensional Reconstructor Core Regenerator Integrated Reactor Phase Armor Core Reset Matrix Subatomic Replicator Dimensional Node Initializer Core Stripper Terrabomb Achievements -------------- Rambo Challenges ------------ None Game ------ Seed AlertCloakingInverter Manual? 0 Play Time 09:34:59 Cumulative 414.5 hours Start 2025.05.14 @ 18:45:41 End 2025.05.18 @ 19:40:10 Sessions 43 Manual Loads 0 Difficulty Rogue Special Mode None Game No. 201 Rogue 201 Adventurer 0 Explorer 0 Win Type - Total 17 Types 3/3/6/2/1/0/1/0/0/1 Lore% 88 Gallery% 82 Achievement% 77 Wizard Run 0 Options --------- Layout 0 ASCII 0 Keyboard 0 Movement Arrows Keybinds 0 Fullscreen 2 Font 18/SmallcapsGlow Map View 76x50 Zoom Use 0% Tactical HUD 1 Map Filters NONE Filters NONE Steam 1 RUN: fadb9cdf-c8ef-44ce-8973-ff8b2a74e8f3